Workbook

Sheet MDO
B2: Table1
B3: ID | C3: Gender | D3: Age | E3: BMD | F3: BMC | G3: Neck | H3: Spine
B4: O9499 | C4: 0 | D4: 7 | E4: 0.5551895294 | F4: 398.7904033 | G4: 1.737795512 | H4: 0.4427175955
B5: D3035 | C5: 0 | D5: 11 | E5: 0.7999813507 | F5: 1107.23168 | G5: 1.068126568 | H5: 0.4384228844
B6: B7221 | C6: 1 | D6: 17 | E6: 1.124479444 | F6: 1328.42916 | G6: 1.121384544 | H6: 0.38378846
B7: O8028 | C7: 1 | D7: 18 | E7: 1.128651148 | F7: 1567.621733 | G7: 1.182083041 | H7: 0.4390071517
B8: A8554 | C8: 0 | D8: 5 | E8: 0.4496529007 | F8: 343.1006789 | G8: 1.60492301 | H8: 0.4348351805
B9: Q1901 | C9: 0 | D9: 6 | E9: 0.5263086332 | F9: 511.8241514 | G9: 1.496033239 | H9: 0.4989149749
B10: P8239 | C10: 0 | D10: 7 | E10: 0.6091874406 | F10: 399.7820436 | G10: 1.388625716 | H10: 0.4980180566
B11: B8869 | C11: 1 | D11: 20 | E11: 0.9748697195 | F11: 2881.80637 | G11: 1.07239315 | H11: 0.3567566806
B12: U5896 | C12: 0 | D12: 15 | E12: 0.8625215536 | F12: 1133.683302 | G12: 0.6995593683 | H12: 0.3878350282
B13: H2021 | C13: 0 | D13: 18 | E13: 1.046292466 | F13: 1478.63283 | G13: 0.5397344149 | H13: 0.4282196007
B14: J5432 | C14: 1 | D14: 5 | E14: 0.4903973916 | F14: 389.2838924 | G14: 0.8132848146 | H14: 0.4253424776
B15: X3352 | C15: 1 | D15: 15 | E15: 0.9894092858 | F15: 1851.256047 | G15: 0.9830232185 | H15: 0.3619595317
B16: W5570 | C16: 0 | D16: 6 | E16: 0.5762665507 | F16: 465.6061045 | G16: 1.572190346 | H16: 0.4629803845
B17: X2729 | C17: 0 | D17: 12 | E17: 0.9678554935 | F17: 1409.677521 | G17: 1.174744561 | H17: 0.4052968845
B18: H8450 | C18: 0 | D18: 9 | E18: 0.6924289318 | F18: 552.50542 | G18: 1.240889306 | H18: 0.451660254
B19: P8103 | C19: 0 | D19: 12 | E19: 1.007495934 | F19: 1386.115451 | G19: 0.9403966528 | H19: 0.4205554771
B20: W4870 | C20: 1 | D20: 6 | E20: 0.5844798243 | F20: 452.5358762 | G20: 0.8166411768 | H20: 0.3851300577
B21: F8579 | C21: 1 | D21: 14 | E21: 0.9553064468 | F21: 2096.55427 | G21: 1.065684107 | H21: 0.3664418968
B22: X3485 | C22: 0 | D22: 12 | E22: 0.9298197429 | F22: 1031.471202 | G22: 1.028294768 | H22: 0.4428051735
B23: Q7190 | C23: 0 | D23: 9 | E23: 0.5092079173 | F23: 642.1060004 | G23: 1.126574035 | H23: 0.4985335319
B24: X3719 | C24: 1 | D24: 5 | E24: 0.5566927023 | F24: 442.9961484 | G24: 0.8328114385 | H24: 0.3851158908
B25: B6326 | C25: 0 | D25: 7 | E25: 0.5214169978 | F25: 395.6863707 | G25: 1.51082065 | H25: 0.4036937245
B26: N1550 | C26: 1 | D26: 12 | E26: 0.8906417744 | F26: 1370.29927 | G26: 1.037017342 | H26: 0.4496270035
B27: M5594 | C27: 0 | D27: 12 | E27: 0.7152346069 | F27: 1589.89291 | G27: 0.810101007 | H27: 0.2881656548
B28: O1724 | C28: 0 | D28: 13 | E28: 0.7578469596 | F28: 1163.956646 | G28: 0.9370582394 | H28: 0.3492051439
B29: A5284 | C29: 0 | D29: 5 | E29: 0.4815557182 | F29: 413.5684762 | G29: 1.564480737 | H29: 0.5208340891
B30: U5964 | C30: 1 | D30: 8 | E30: 0.6813300911 | F30: 596.7299108 | G30: 0.8900831865 | H30: 0.3270710675
B31: H2877 | C31: 1 | D31: 5 | E31: 0.4577302086 | F31: 456.6166046 | G31: 0.9387318736 | H31: 0.3702853973
B32: S1153 | C32: 0 | D32: 12 | E32: 0.7371529537 | F32: 978.0920646 | G32: 1.114149022 | H32: 0.425465748
B33: W9035 | C33: 1 | D33: 3 | E33: 0.4567487536 | F33: 335.3715827 | G33: 0.8199678795 | H33: 0.2960688424
B34: E5743 | C34: 1 | D34: 18 | E34: 0.955661615 | F34: 2484.113997 | G34: 0.978716777 | H34: 0.4064599632
B35: H9627 | C35: 1 | D35: 18 | E35: 0.8732179894 | F35: 2814.700114 | G35: 1.202801265 | H35: 0.3216940566
B36: V1858 | C36: 1 | D36: 17 | E36: 0.9262607349 | F36: 2193.116461 | G36: 0.941647814 | H36: 0.3676933142
B37: O2560 | C37: 0 | D37: 12 | E37: 0.861436769 | F37: 1081.398194 | G37: 0.9167868525 | H37: 0.396096527
B38: L8433 | C38: 0 | D38: 9 | E38: 0.6311285956 | F38: 834.0273541 | G38: 1.036071554 | H38: 0.4914928023
B39: C1435 | C39: 1 | D39: 15 | E39: 1.029750594 | F39: 1711.046823 | G39: 1.050455202 | H39: 0.3215511369
B40: T2158 | C40: 1 | D40: 19 | E40: 1.131965432 | F40: 1252.241629 | G40: 1.098653451 | H40: 0.4141459041
B41: A8683 | C41: 0 | D41: 9 | E41: 0.6677560686 | F41: 646.010584 | G41: 1.346146947 | H41: 0.4437423296
B42: H1035 | C42: 0 | D42: 4 | E42: 0.4432899049 | F42: 380.6481971 | G42: 1.865216365 | H42: 0.4165632691
B43: D3237 | C43: 0 | D43: 6 | E43: 0.4689387294 | F43: 546.091779 | G43: 1.711955239 | H43: 0.4248495918
B44: X6184 | C44: 0 | D44: 15 | E44: 1.023201628 | F44: 1520.084223 | G44: 0.9771274879 | H44: 0.4257955181
B45: F7919 | C45: 1 | D45: 12 | E45: 0.6751984048 | F45: 1350.909625 | G45: 0.9792985342 | H45: 0.3798367457
B46: Q2476 | C46: 1 | D46: 7 | E46: 0.6318428556 | F46: 691.0956552 | G46: 0.9547637799 | H46: 0.3378738848
B47: W3978 | C47: 1 | D47: 14 | E47: 0.9384997692 | F47: 2150.053895 | G47: 0.9945993649 | H47: 0.4165681971
B48: X7298 | C48: 0 | D48: 13 | E48: 0.9947738741 | F48: 1482.517965 | G48: 0.9448634092 | H48: 0.4520321602
B49: T5881 | C49: 1 | D49: 12 | E49: 0.7997381518 | F49: 1288.093127 | G49: 0.957006137 | H49: 0.3536486188
B50: K7801 | C50: 0 | D50: 8 | E50: 0.7211564534 | F50: 721.024366 | G50: 1.535038601 | H50: 0.4850499165
B51: X6399 | C51: 1 | D51: 20 | E51: 1.037798338 | F51: 1946.176694 | G51: 1.204591388 | H51: 0.3403234755
B52: H4801 | C52: 0 | D52: 18 | E52: 0.9764399965 | F52: 1508.401114 | G52: 0.543778142 | H52: 0.357592153
B53: K3147 | C53: 1 | D53: 17 | E53: 1.057607948 | F53: 2051.951082 | G53: 1.07644175 | H53: 0.3827970198
B54: I1959 | C54: 1 | D54: 12 | E54: 0.8732276338 | F54: 1079.357654 | G54: 0.827326517 | H54: 0.3813134922
B55: J9000 | C55: 1 | D55: 8 | E55: 0.5748331841 | F55: 572.0609835 | G55: 0.9980307716 | H55: 0.3687556198
B56: G3790 | C56: 1 | D56: 17 | E56: 1.077546754 | F56: 935.9685626 | G56: 1.098281446 | H56: 0.3560476892
B57: P9797 | C57: 1 | D57: 5 | E57: 0.4382178457 | F57: 326.0012056 | G57: 0.6309622771 | H57: 0.3960247795
B58: I5698 | C58: 1 | D58: 17 | E58: 1.012417958 | F58: 1650.334719 | G58: 1.11879635 | H58: 0.3486375812
B59: Q8070 | C59: 0 | D59: 3 | E59: 0.5065017206 | F59: 353.3588309 | G59: 1.827601443 | H59: 0.4714263288
B60: F2484 | C60: 0 | D60: 19 | E60: 0.93740529 | F60: 1531.065763 | G60: 0.2799746124 | H60: 0.3666444965
B61: D7249 | C61: 0 | D61: 6 | E61: 0.5210484398 | F61: 560.8816954 | G61: 1.554476914 | H61: 0.4337492703
B62: J8038 | C62: 0 | D62: 14 | E62: 0.952821544 | F62: 1682.361679 | G62: 0.8188634029 | H62: 0.4489479071
B63: I1480 | C63: 1 | D63: 14 | E63: 0.9607319693 | F63: 835.0443731 | G63: 0.9877381369 | H63: 0.4188928655
B64: V5490 | C64: 0 | D64: 13 | E64: 0.8070528182 | F64: 1026.83554 | G64: 1.232740879 | H64: 0.4261932793
B65: V6433 | C65: 0 | D65: 6 | E65: 0.5185994003 | F65: 410.315666 | G65: 1.63982401 | H65: 0.4883636086
B66: A8247 | C66: 1 | D66: 10 | E66: 0.7193588171 | F66: 921.6394461 | G66: 1.009843715 | H66: 0.3391326635
B67: L6503 | C67: 0 | D67: 14 | E67: 0.687308663 | F67: 1614.970486 | G67: 1.123355067 | H67: 0.3943833182
B68: H9284 | C68: 1 | D68: 14 | E68: 0.8230336301 | F68: 1213.010367 | G68: 1.08995204 | H68: 0.3788630479
B69: B1560 | C69: 0 | D69: 12 | E69: 1.011503395 | F69: 1424.335344 | G69: 0.9950397766 | H69: 0.4247598892
B70: T3353 | C70: 0 | D70: 9 | E70: 0.6802243792 | F70: 610.7226488 | G70: 1.17074862 | H70: 0.4319282662
B71: L9692 | C71: 0 | D71: 14 | E71: 0.8798112657 | F71: 2008.572508 | G71: 1.1148713 | H71: 0.3522827175
B72: J1434 | C72: 1 | D72: 6 | E72: 0.6339352017 | F72: 482.1556857 | G72: 0.9028717338 | H72: 0.3557411916
B73: C4354 | C73: 1 | D73: 10 | E73: 0.6952801018 | F73: 639.686748 | G73: 1.024278305 | H73: 0.3846320005
B74: O1500 | C74: 1 | D74: 5 | E74: 0.5466754026 | F74: 502.0294941 | G74: 0.7581382855 | H74: 0.4022924258
B75: J4146 | C75: 1 | D75: 13 | E75: 0.9145735204 | F75: 1203.436487 | G75: 1.113257556 | H75: 0.3085374373
B76: O6014 | C76: 1 | D76: 12 | E76: 0.8671902352 | F76: 959.0191996 | G76: 1.021614139 | H76: 0.3597470991
B77: L4156 | C77: 1 | D77: 7 | E77: 0.5871908244 | F77: 648.2707193 | G77: 0.8341234004 | H77: 0.3696351678
B78: F3869 | C78: 0 | D78: 9 | E78: 0.7154250074 | F78: 713.656799 | G78: 1.303692416 | H78: 0.3499420483
B79: U8007 | C79: 0 | D79: 6 | E79: 0.4399631832 | F79: 412.6485427 | G79: 1.714848569 | H79: 0.3997775968
B80: T1699 | C80: 0 | D80: 17 | E80: 0.9637570246 | F80: 1327.886987 | G80: 0.6217368441 | H80: 0.3784936145
B81: F9676 | C81: 1 | D81: 17 | E81: 0.8274736828 | F81: 2263.770564 | G81: 1.052547164 | H81: 0.3689328645
B82: R8771 | C82: 0 | D82: 10 | E82: 0.5435333446 | F82: 659.4390279 | G82: 1.191706384 | H82: 0.4102165581
B83: I6968 | C83: 1 | D83: 9 | E83: 0.657403638 | F83: 662.7554876 | G83: 0.9534131073 | H83: 0.327670636
B84: N1291 | C84: 1 | D84: 20 | E84: 1.199102076 | F84: 2305.777487 | G84: 1.097653001 | H84: 0.3722112693
B85: M9096 | C85: 1 | D85: 10 | E85: 0.7145881991 | F85: 679.1814463 | G85: 1.057428023 | H85: 0.4208575837
B86: X5117 | C86: 1 | D86: 20 | E86: 1.258761874 | F86: 2467.035134 | G86: 1.134121465 | H86: 0.4178706318
B87: R1359 | C87: 1 | D87: 17 | E87: 0.9747622002 | F87: 2885.53744 | G87: 1.200365633 | H87: 0.3164856702
B88: C3727 | C88: 0 | D88: 8 | E88: 0.7435895768 | F88: 713.3418643 | G88: 1.410672931 | H88: 0.4636367732
B89: Q4071 | C89: 1 | D89: 5 | E89: 0.560598475 | F89: 376.6473276 | G89: 0.8726855052 | H89: 0.4174064997
B90: W1799 | C90: 0 | D90: 10 | E90: 0.7746010737 | F90: 1122.346729 | G90: 1.343090526 | H90: 0.4097139258
B91: I3910 | C91: 0 | D91: 12 | E91: 0.891009785 | F91: 1525.649851 | G91: 1.121078462 | H91: 0.4610725565
B92: S9890 | C92: 1 | D92: 20 | E92: 1.12498393 | F92: 3112.699799 | G92: 1.121966296 | H92: 0.4512734618
B93: S4301 | C93: 1 | D93: 13 | E93: 0.8779652445 | F93: 1539.455043 | G93: 0.909088956 | H93: 0.3714128979
B94: K4861 | C94: 1 | D94: 17 | E94: 1.151040486 | F94: 2181.511015 | G94: 1.0168246 | H94: 0.3502656676
B95: U5681 | C95: 0 | D95: 19 | E95: 1.144724569 | F95: 1885.623723 | G95: 0.4322389184 | H95: 0.3888714556
B96: K1097 | C96: 0 | D96: 19 | E96: 1.135014749 | F96: 1916.834744 | G96: 0.2981642791 | H96: 0.4290437002
B97: W3914 | C97: 1 | D97: 10 | E97: 0.6502528358 | F97: 1077.393042 | G97: 0.903089728 | H97: 0.3983295818
B98: Q1226 | C98: 0 | D98: 9 | E98: 0.6068503121 | F98: 797.3784443 | G98: 1.373989081 | H98: 0.4969580469
B99: U7492 | C99: 1 | D99: 19 | E99: 1.317140245 | F99: 2545.851977 | G99: 1.231003347 | H99: 0.3631865522
B100: Q8230 | C100: 0 | D100: 10 | E100: 0.7381765692 | F100: 842.0219082 | G100: 1.371587269 | H100: 0.5017117706
B101: T3016 | C101: 0 | D101: 4 | E101: 0.44147489 | F101: 395.5632565 | G101: 1.822581413 | H101: 0.4805413556
B102: U2561 | C102: 1 | D102: 12 | E102: 0.908376389 | F102: 859.9143814 | G102: 0.940404107 | H102: 0.4033780611
B103: M4553 | C103: 1 | D103: 12 | E103: 0.9401841972 | F103: 716.0913458 | G103: 0.8567968739 | H103: 0.4433427589
B104: G9920 | C104: 1 | D104: 12 | E104: 0.8024480822 | F104: 886.8497719 | G104: 0.9409887984 | H104: 0.3397454007
B105: G9532 | C105: 0 | D105: 5 | E105: 0.5134034418 | F105: 370.8223389 | G105: 1.600948177 | H105: 0.5204153578
B106: Q6416 | C106: 1 | D106: 12 | E106: 0.7990392984 | F106: 750.5325641 | G106: 0.9986065383 | H106: 0.3746304342
B107: X4093 | C107: 1 | D107: 20 | E107: 1.17046248 | F107: 2817.920563 | G107: 1.232687953 | H107: 0.3837026439
B108: E9093 | C108: 0 | D108: 5 | E108: 0.4895010036 | F108: 405.6312591 | G108: 1.774707481 | H108: 0.4203855834
B109: K3141 | C109: 0 | D109: 3 | E109: 0.4111424517 | F109: 311.4186759 | G109: 1.89227186 | H109: 0.4025497494
B110: E7807 | C110: 1 | D110: 4 | E110: 0.4858417728 | F110: 331.810068 | G110: 0.7782819021 | H110: 0.366569992
B111: A3985 | C111: 1 | D111: 19 | E111: 1.232147049 | F111: 2347.032473 | G111: 1.09192751 | H111: 0.3422345227
B112: A8744 | C112: 1 | D112: 8 | E112: 0.8179910151 | F112: 500.8852833 | G112: 0.9546451458 | H112: 0.3869898972
B113: H3611 | C113: 0 | D113: 16 | E113: 0.8124672362 | F113: 1581.414363 | G113: 0.6763611841 | H113: 0.422755604
B114: D9104 | C114: 1 | D114: 20 | E114: 1.224736464 | F114: 2454.919243 | G114: 1.150396191 | H114: 0.3592718882
B115: J2031 | C115: 1 | D115: 11 | E115: 0.8385681309 | F115: 404.3567833 | G115: 0.9482264774 | H115: 0.3849793608
B116: C2268 | C116: 0 | D116: 6 | E116: 0.5228057917 | F116: 442.2883588 | G116: 1.580508471 | H116: 0.4203659193
B117: K1147 | C117: 0 | D117: 16 | E117: 0.942782627 | F117: 1568.595706 | G117: 0.748626791 | H117: 0.3837330971
B118: G1565 | C118: 1 | D118: 7 | E118: 0.5790684751 | F118: 552.8582222 | G118: 0.8985672392 | H118: 0.4136923645
B119: N9434 | C119: 1 | D119: 18 | E119: 1.252187642 | F119: 1070.934835 | G119: 1.08564857 | H119: 0.4045270141
B120: D4397 | C120: 1 | D120: 13 | E120: 0.90464986 | F120: 1099.920615 | G120: 1.000332761 | H120: 0.3796702003
B121: D3969 | C121: 1 | D121: 19 | E121: 1.001165845 | F121: 1855.765601 | G121: 1.318588824 | H121: 0.3805386197
B122: X5502 | C122: 1 | D122: 12 | E122: 0.9180000116 | F122: 1190.945314 | G122: 0.9416967263 | H122: 0.3808965799
B123: B8318 | C123: 0 | D123: 5 | E123: 0.4915683158 | F123: 516.8332891 | G123: 1.735811121 | H123: 0.4435186721
B124: N9823 | C124: 0 | D124: 4 | E124: 0.5408213291 | F124: 407.8333291 | G124: 1.774733238 | H124: 0.4276322744
B125: V9924 | C125: 1 | D125: 19 | E125: 1.057648659 | F125: 2688.860918 | G125: 1.293108875 | H125: 0.3566608367
B126: E5947 | C126: 1 | D126: 19 | E126: 1.165612452 | F126: 2333.420878 | G126: 1.215712467 | H126: 0.3552653081
B127: F3678 | C127: 1 | D127: 7 | E127: 0.5086338925 | F127: 370.6440373 | G127: 0.830387651 | H127: 0.4408034011
B128: T4074 | C128: 0 | D128: 4 | E128: 0.4085912678 | F128: 459.7972123 | G128: 1.693963287 | H128: 0.4755579158
B129: S4276 | C129: 1 | D129: 3 | E129: 0.434427431 | F129: 370.5604079 | G129: 0.6741682618 | H129: 0.3857186446
B130: T2378 | C130: 0 | D130: 6 | E130: 0.591898641 | F130: 380.0835028 | G130: 1.652909706 | H130: 0.5026601832
B131: G3293 | C131: 1 | D131: 11 | E131: 0.7885627116 | F131: 1167.50231 | G131: 0.952131734 | H131: 0.4552565621
B132: V6793 | C132: 0 | D132: 8 | E132: 0.6829218964 | F132: 489.886292 | G132: 1.439428652 | H132: 0.4444180588
B133: A6596 | C133: 0 | D133: 12 | E133: 0.8713432126 | F133: 952.9913682 | G133: 1.052910697 | H133: 0.4442760084
B134: P8601 | C134: 0 | D134: 11 | E134: 0.7705104482 | F134: 1124.300429 | G134: 0.9819992385 | H134: 0.4520062332
B135: O5421 | C135: 1 | D135: 4 | E135: 0.5551841966 | F135: 423.3474321 | G135: 0.8142342277 | H135: 0.3710266979
B136: O1580 | C136: 0 | D136: 6 | E136: 0.5646586994 | F136: 431.402835 | G136: 1.615791181 | H136: 0.4856569978
B137: J6473 | C137: 0 | D137: 16 | E137: 0.8553940673 | F137: 1255.577942 | G137: 0.6115911779 | H137: 0.361306413
B138: A5579 | C138: 1 | D138: 19 | E138: 0.9807136757 | F138: 1930.213313 | G138: 1.194395731 | H138: 0.3402002559
B139: O2017 | C139: 1 | D139: 11 | E139: 0.7142065539 | F139: 650.2782571 | G139: 0.9629876901 | H139: 0.3221181793
B140: R9599 | C140: 1 | D140: 10 | E140: 0.8014799268 | F140: 599.4870094 | G140: 0.8458329438 | H140: 0.3735595391
B141: K1130 | C141: 0 | D141: 7 | E141: 0.5523640341 | F141: 620.0644616 | G141: 1.665688043 | H141: 0.4960424523
B142: V1225 | C142: 0 | D142: 16 | E142: 0.977761941 | F142: 1608.360862 | G142: 0.9016767868 | H142: 0.3422521352
B143: D1727 | C143: 0 | D143: 11 | E143: 0.7696928034 | F143: 992.0073188 | G143: 1.17744965 | H143: 0.4549254384
B144: G4434 | C144: 0 | D144: 15 | E144: 0.9038372627 | F144: 1944.231278 | G144: 0.8006327651 | H144: 0.473025578
B145: L8583 | C145: 0 | D145: 4 | E145: 0.463415572 | F145: 378.5056209 | G145: 1.855934744 | H145: 0.5207226041
B146: U2985 | C146: 0 | D146: 13 | E146: 0.7031885676 | F146: 1640.721726 | G146: 0.962507038 | H146: 0.4112767021
B147: M1750 | C147: 1 | D147: 12 | E147: 0.7582804729 | F147: 1128.942464 | G147: 0.8360653969 | H147: 0.3761727553
B148: U8914 | C148: 1 | D148: 9 | E148: 0.637129364 | F148: 649.035278 | G148: 0.7020706085 | H148: 0.3822156253
B149: C3072 | C149: 1 | D149: 10 | E149: 0.882261992 | F149: 1144.590985 | G149: 1.373596962 | H149: 0.3829150833
B150: H8992 | C150: 0 | D150: 7 | E150: 0.5888249957 | F150: 486.7627608 | G150: 1.473653353 | H150: 0.4881767783
B151: H5714 | C151: 1 | D151: 11 | E151: 0.8170800089 | F151: 970.2016314 | G151: 1.136600224 | H151: 0.4262327672
B152: I9236 | C152: 0 | D152: 20 | E152: 1.09705651 | F152: 1875.464962 | G152: 0.1951579348 | H152: 0.2995019861
B153: P6613 | C153: 1 | D153: 15 | E153: 0.8782074321 | F153: 2000.045647 | G153: 1.172804977 | H153: 0.3484840489
B154: W8625 | C154: 0 | D154: 6 | E154: 0.5586327604 | F154: 445.821914 | G154: 1.577394816 | H154: 0.4835557013
B155: F3673 | C155: 1 | D155: 17 | E155: 0.9734762145 | F155: 1558.169206 | G155: 1.079371232 | H155: 0.4513342668
B156: R6144 | C156: 0 | D156: 4 | E156: 0.5489894714 | F156: 453.2698143 | G156: 3.204652958 | H156: 0.6612702414
B157: B6749 | C157: 0 | D157: 8 | E157: 0.58917764 | F157: 549.188075 | G157: 1.36226644 | H157: 0.3934586159
B158: E7068 | C158: 0 | D158: 10 | E158: 0.7490219081 | F158: 992.9230864 | G158: 1.142365387 | H158: 0.3915120265
B159: G7133 | C159: 1 | D159: 19 | E159: 1.175928214 | F159: 2897.893121 | G159: 1.046069878 | H159: 0.3697077201
B160: M9277 | C160: 1 | D160: 9 | E160: 0.6056687144 | F160: 695.3904313 | G160: 0.8755524028 | H160: 0.409782819
B161: I9809 | C161: 1 | D161: 8 | E161: 0.6157279028 | F161: 510.8265969 | G161: 1.061086267 | H161: 0.3726075573
B162: L5664 | C162: 0 | D162: 8 | E162: 0.5338673381 | F162: 667.0940587 | G162: 1.400261718 | H162: 0.4206892056
B163: M4231 | C163: 0 | D163: 10 | E163: 0.7449360635 | F163: 788.3844582 | G163: 1.228773523 | H163: 0.4820175723
B164: V2070 | C164: 0 | D164: 17 | E164: 0.8394899283 | F164: 1972.955988 | G164: 0.7374803391 | H164: 0.3667716751
B165: V1500 | C165: 1 | D165: 16 | E165: 0.9714629725 | F165: 2270.201432 | G165: 1.031835918 | H165: 0.3583541847
B166: I3439 | C166: 0 | D166: 4 | E166: 0.4421404014 | F166: 405.3324063 | G166: 1.646966967 | H166: 0.4561556198
B167: L8626 | C167: 1 | D167: 5 | E167: 0.5033579344 | F167: 404.9437541 | G167: 0.407811752 | H167: 0.1703561577
B168: O3340 | C168: 1 | D168: 13 | E168: 0.8479319332 | F168: 1008.546615 | G168: 0.9403801212 | H168: 0.3772442596
B169: O2925 | C169: 1 | D169: 9 | E169: 0.6612283588 | F169: 857.0229193 | G169: 1.028075801 | H169: 0.3493820026
B170: F2746 | C170: 0 | D170: 19 | E170: 0.9539214683 | F170: 1576.96636 | G170: 0.3504856903 | H170: 0.4208841685
B171: K5970 | C171: 1 | D171: 10 | E171: 0.5954678627 | F171: 813.8776662 | G171: 0.6929930413 | H171: 0.3666766196
B172: J6044 | C172: 0 | D172: 15 | E172: 0.9395776623 | F172: 1572.693819 | G172: 0.6607161002 | H172: 0.3412987309
B173: U2680 | C173: 1 | D173: 5 | E173: 0.5448071163 | F173: 476.9799636 | G173: 0.7585435791 | H173: 0.3665589247
B174: K2707 | C174: 0 | D174: 5 | E174: 0.524213506 | F174: 387.8117227 | G174: 1.811458343 | H174: 0.4626711754
B175: C1590 | C175: 0 | D175: 13 | E175: 0.8761288613 | F175: 1372.940054 | G175: 0.9867224481 | H175: 0.4136660357
B176: G8298 | C176: 1 | D176: 8 | E176: 0.5321243475 | F176: 599.6769192 | G176: 0.9720781129 | H176: 0.3562532964
B177: M9474 | C177: 0 | D177: 9 | E177: 0.6927812905 | F177: 693.1106793 | G177: 1.135617568 | H177: 0.454646307
B178: A8096 | C178: 0 | D178: 5 | E178: 0.4131057315 | F178: 424.8504681 | G178: 1.734648787 | H178: 0.3675382115
B179: Q9114 | C179: 0 | D179: 8 | E179: 0.6956234992 | F179: 542.2136149 | G179: 1.378743983 | H179: 0.4354446657
B180: D6580 | C180: 1 | D180: 8 | E180: 0.632551372 | F180: 700.3091974 | G180: 0.7687862656 | H180: 0.3853867764
B181: L1343 | C181: 0 | D181: 9 | E181: 0.5697661613 | F181: 694.3086407 | G181: 1.212450998 | H181: 0.4635830929
B182: S8850 | C182: 1 | D182: 14 | E182: 1.002257587 | F182: 1383.850584 | G182: 1.091545588 | H182: 0.353489328
B183: B5624 | C183: 0 | D183: 17 | E183: 1.021132009 | F183: 1686.003976 | G183: 0.6247356755 | H183: 0.3629737241
B184: X2874 | C184: 1 | D184: 15 | E184: 1.037328265 | F184: 1529.852398 | G184: 1.214703124 | H184: 0.4335108441
B185: S1822 | C185: 0 | D185: 12 | E185: 0.9100315825 | F185: 1260.664298 | G185: 1.193220036 | H185: 0.3989823082
B186: R6758 | C186: 0 | D186: 8 | E186: 0.6707760858 | F186: 673.325689 | G186: 1.482588951 | H186: 0.4561304406
B187: G5077 | C187: 1 | D187: 12 | E187: 0.6745776746 | F187: 1299.945581 | G187: 0.9669574869 | H187: 0.3152813575
B188: J4410 | C188: 0 | D188: 6 | E188: 0.5834340719 | F188: 498.9419275 | G188: 0.8161185726 | H188: 0.5314705133
B189: N4693 | C189: 1 | D189: 5 | E189: 0.4625867648 | F189: 445.2598352 | G189: 1.05600735 | H189: 0.3450311851
B190: E9103 | C190: 1 | D190: 16 | E190: 1.059405767 | F190: 2218.152637 | G190: 1.210910764 | H190: 0.3873412361
B191: T3708 | C191: 1 | D191: 15 | E191: 0.8767607386 | F191: 1916.094886 | G191: 1.026935555 | H191: 0.3527331627
B192: E8343 | C192: 1 | D192: 18 | E192: 1.075163756 | F192: 2425.808128 | G192: 1.023469601 | H192: 0.3200578756
B193: L9988 | C193: 0 | D193: 14 | E193: 0.8898498908 | F193: 1099.102363 | G193: 0.9367167495 | H193: 0.4719407517
B194: J3408 | C194: 0 | D194: 11 | E194: 0.8139773282 | F194: 1002.18685 | G194: 1.106158453 | H194: 0.4025459559
B195: L4809 | C195: 1 | D195: 16 | E195: 1.035673412 | F195: 1324.062352 | G195: 1.079645781 | H195: 0.3776450221
B196: L2812 | C196: 0 | D196: 4 | E196: 0.4321062101 | F196: 448.0417432 | G196: 1.685757144 | H196: 0.5237765054
B197: F7822 | C197: 1 | D197: 9 | E197: 0.7602991392 | F197: 858.5978549 | G197: 0.9087521426 | H197: 0.4606919668
B198: F8322 | C198: 1 | D198: 6 | E198: 0.5906103188 | F198: 504.9605696 | G198: 0.8144502041 | H198: 0.4113329184
B199: Q4778 | C199: 0 | D199: 13 | E199: 0.972317354 | F199: 1349.013238 | G199: 0.7035750333 | H199: 0.4465886525
B200: U4890 | C200: 0 | D200: 17 | E200: 1.015185068 | F200: 1681.357078 | G200: 0.6475176082 | H200: 0.3812612978
B201: A5901 | C201: 1 | D201: 6 | E201: 0.6174042715 | F201: 500.824024 | G201: 0.8158910711 | H201: 0.4026609774
... 202 more rows

Sheet RefTbl
B2: FEMALE | F2: MALE
B4: Table4 | C4: BMD | F4: Table5 | G4: BMD
B5: Age | C5: Mean | D5: SD | F5: Age | G5: Mean | H5: SD
B6: 3 | C6: =AVERAGEIFS(Table1[BMD],Table1[Age],Table4[[#This Row],[Age]],Table1[Gender],0) -> 0.4430743351 | D6: =STDEV(IFERROR(1/(1/((Table1[Age]=Table4[[#This Row],[Age]])*(Table1[Gender]=0)*Table1[BMD])),"")) -> 0.04011617063 | F6: 3 | G6: =AVERAGEIFS(Table1[BMD],Table1[Age],Table5[[#This Row],[Age]],Table1[Gender],1) -> 0.4463408978 | H6: =STDEV(IFERROR(1/(1/((Table1[Age]=Table5[[#This Row],[Age]])*(Table1[Gender]=1)*Table1[BMD])),"")) -> 0.01567012356
B7: 4 | C7: =AVERAGEIFS(Table1[BMD],Table1[Age],Table4[[#This Row],[Age]],Table1[Gender],0) -> 0.4730147802 | D7: =STDEV(IFERROR(1/(1/((Table1[Age]=Table4[[#This Row],[Age]])*(Table1[Gender]=0)*Table1[BMD])),"")) -> 0.05158146624 | F7: 4 | G7: =AVERAGEIFS(Table1[BMD],Table1[Age],Table5[[#This Row],[Age]],Table1[Gender],1) -> 0.4884300514 | H7: =STDEV(IFERROR(1/(1/((Table1[Age]=Table5[[#This Row],[Age]])*(Table1[Gender]=1)*Table1[BMD])),"")) -> 0.03879331863
B8: 5 | C8: =AVERAGEIFS(Table1[BMD],Table1[Age],Table4[[#This Row],[Age]],Table1[Gender],0) -> 0.466986438 | D8: =STDEV(IFERROR(1/(1/((Table1[Age]=Table4[[#This Row],[Age]])*(Table1[Gender]=0)*Table1[BMD])),"")) -> 0.05169501664 | F8: 5 | G8: =AVERAGEIFS(Table1[BMD],Table1[Age],Table5[[#This Row],[Age]],Table1[Gender],1) -> 0.5104463707 | H8: =STDEV(IFERROR(1/(1/((Table1[Age]=Table5[[#This Row],[Age]])*(Table1[Gender]=1)*Table1[BMD])),"")) -> 0.03900624516
B9: 6 | C9: =AVERAGEIFS(Table1[BMD],Table1[Age],Table4[[#This Row],[Age]],Table1[Gender],0) -> 0.5341418367 | D9: =STDEV(IFERROR(1/(1/((Table1[Age]=Table4[[#This Row],[Age]])*(Table1[Gender]=0)*Table1[BMD])),"")) -> 0.04282101496 | F9: 6 | G9: =AVERAGEIFS(Table1[BMD],Table1[Age],Table5[[#This Row],[Age]],Table1[Gender],1) -> 0.5580133665 | H9: =STDEV(IFERROR(1/(1/((Table1[Age]=Table5[[#This Row],[Age]])*(Table1[Gender]=1)*Table1[BMD])),"")) -> 0.05052267136
B10: 7 | C10: =AVERAGEIFS(Table1[BMD],Table1[Age],Table4[[#This Row],[Age]],Table1[Gender],0) -> 0.5759774221 | D10: =STDEV(IFERROR(1/(1/((Table1[Age]=Table4[[#This Row],[Age]])*(Table1[Gender]=0)*Table1[BMD])),"")) -> 0.05072647348 | F10: 7 | G10: =AVERAGEIFS(Table1[BMD],Table1[Age],Table5[[#This Row],[Age]],Table1[Gender],1) -> 0.5960973102 | H10: =STDEV(IFERROR(1/(1/((Table1[Age]=Table5[[#This Row],[Age]])*(Table1[Gender]=1)*Table1[BMD])),"")) -> 0.0549411573
B11: 8 | C11: =AVERAGEIFS(Table1[BMD],Table1[Age],Table4[[#This Row],[Age]],Table1[Gender],0) -> 0.6574305908 | D11: =STDEV(IFERROR(1/(1/((Table1[Age]=Table4[[#This Row],[Age]])*(Table1[Gender]=0)*Table1[BMD])),"")) -> 0.06550844345 | F11: 8 | G11: =AVERAGEIFS(Table1[BMD],Table1[Age],Table5[[#This Row],[Age]],Table1[Gender],1) -> 0.6403729867 | H11: =STDEV(IFERROR(1/(1/((Table1[Age]=Table5[[#This Row],[Age]])*(Table1[Gender]=1)*Table1[BMD])),"")) -> 0.07596519926
B12: 9 | C12: =AVERAGEIFS(Table1[BMD],Table1[Age],Table4[[#This Row],[Age]],Table1[Gender],0) -> 0.6448035488 | D12: =STDEV(IFERROR(1/(1/((Table1[Age]=Table4[[#This Row],[Age]])*(Table1[Gender]=0)*Table1[BMD])),"")) -> 0.05953745229 | F12: 9 | G12: =AVERAGEIFS(Table1[BMD],Table1[Age],Table5[[#This Row],[Age]],Table1[Gender],1) -> 0.6708606785 | H12: =STDEV(IFERROR(1/(1/((Table1[Age]=Table5[[#This Row],[Age]])*(Table1[Gender]=1)*Table1[BMD])),"")) -> 0.05778974588
B13: 10 | C13: =AVERAGEIFS(Table1[BMD],Table1[Age],Table4[[#This Row],[Age]],Table1[Gender],0) -> 0.720370596 | D13: =STDEV(IFERROR(1/(1/((Table1[Age]=Table4[[#This Row],[Age]])*(Table1[Gender]=0)*Table1[BMD])),"")) -> 0.07418889349 | F13: 10 | G13: =AVERAGEIFS(Table1[BMD],Table1[Age],Table5[[#This Row],[Age]],Table1[Gender],1) -> 0.7337649531 | H13: =STDEV(IFERROR(1/(1/((Table1[Age]=Table5[[#This Row],[Age]])*(Table1[Gender]=1)*Table1[BMD])),"")) -> 0.08397438904
B14: 11 | C14: =AVERAGEIFS(Table1[BMD],Table1[Age],Table4[[#This Row],[Age]],Table1[Gender],0) -> 0.7219430754 | D14: =STDEV(IFERROR(1/(1/((Table1[Age]=Table4[[#This Row],[Age]])*(Table1[Gender]=0)*Table1[BMD])),"")) -> 0.07671511536 | F14: 11 | G14: =AVERAGEIFS(Table1[BMD],Table1[Age],Table5[[#This Row],[Age]],Table1[Gender],1) -> 0.8129023587 | H14: =STDEV(IFERROR(1/(1/((Table1[Age]=Table5[[#This Row],[Age]])*(Table1[Gender]=1)*Table1[BMD])),"")) -> 0.07862822145
B15: 12 | C15: =AVERAGEIFS(Table1[BMD],Table1[Age],Table4[[#This Row],[Age]],Table1[Gender],0) -> 0.8724848229 | D15: =STDEV(IFERROR(1/(1/((Table1[Age]=Table4[[#This Row],[Age]])*(Table1[Gender]=0)*Table1[BMD])),"")) -> 0.1158030304 | F15: 12 | G15: =AVERAGEIFS(Table1[BMD],Table1[Age],Table5[[#This Row],[Age]],Table1[Gender],1) -> 0.8380351665 | H15: =STDEV(IFERROR(1/(1/((Table1[Age]=Table5[[#This Row],[Age]])*(Table1[Gender]=1)*Table1[BMD])),"")) -> 0.09211689972
B16: 13 | C16: =AVERAGEIFS(Table1[BMD],Table1[Age],Table4[[#This Row],[Age]],Table1[Gender],0) -> 0.8608613026 | D16: =STDEV(IFERROR(1/(1/((Table1[Age]=Table4[[#This Row],[Age]])*(Table1[Gender]=0)*Table1[BMD])),"")) -> 0.08508886268 | F16: 13 | G16: =AVERAGEIFS(Table1[BMD],Table1[Age],Table5[[#This Row],[Age]],Table1[Gender],1) -> 0.8719953061 | H16: =STDEV(IFERROR(1/(1/((Table1[Age]=Table5[[#This Row],[Age]])*(Table1[Gender]=1)*Table1[BMD])),"")) -> 0.02833480177
B17: 14 | C17: =AVERAGEIFS(Table1[BMD],Table1[Age],Table4[[#This Row],[Age]],Table1[Gender],0) -> 0.8872163735 | D17: =STDEV(IFERROR(1/(1/((Table1[Age]=Table4[[#This Row],[Age]])*(Table1[Gender]=0)*Table1[BMD])),"")) -> 0.08326585833 | F17: 14 | G17: =AVERAGEIFS(Table1[BMD],Table1[Age],Table5[[#This Row],[Age]],Table1[Gender],1) -> 0.9409268274 | H17: =STDEV(IFERROR(1/(1/((Table1[Age]=Table5[[#This Row],[Age]])*(Table1[Gender]=1)*Table1[BMD])),"")) -> 0.06558531861
B18: 15 | C18: =AVERAGEIFS(Table1[BMD],Table1[Age],Table4[[#This Row],[Age]],Table1[Gender],0) -> 0.9154308463 | D18: =STDEV(IFERROR(1/(1/((Table1[Age]=Table4[[#This Row],[Age]])*(Table1[Gender]=0)*Table1[BMD])),"")) -> 0.05483075494 | F18: 15 | G18: =AVERAGEIFS(Table1[BMD],Table1[Age],Table5[[#This Row],[Age]],Table1[Gender],1) -> 0.9522448845 | H18: =STDEV(IFERROR(1/(1/((Table1[Age]=Table5[[#This Row],[Age]])*(Table1[Gender]=1)*Table1[BMD])),"")) -> 0.08505747795
B19: 16 | C19: =AVERAGEIFS(Table1[BMD],Table1[Age],Table4[[#This Row],[Age]],Table1[Gender],0) -> 0.9165110713 | D19: =STDEV(IFERROR(1/(1/((Table1[Age]=Table4[[#This Row],[Age]])*(Table1[Gender]=0)*Table1[BMD])),"")) -> 0.09303011532 | F19: 16 | G19: =AVERAGEIFS(Table1[BMD],Table1[Age],Table5[[#This Row],[Age]],Table1[Gender],1) -> 0.9646587015 | H19: =STDEV(IFERROR(1/(1/((Table1[Age]=Table5[[#This Row],[Age]])*(Table1[Gender]=1)*Table1[BMD])),"")) -> 0.09050106716
B20: 17 | C20: =AVERAGEIFS(Table1[BMD],Table1[Age],Table4[[#This Row],[Age]],Table1[Gender],0) -> 0.9719787518 | D20: =STDEV(IFERROR(1/(1/((Table1[Age]=Table4[[#This Row],[Age]])*(Table1[Gender]=0)*Table1[BMD])),"")) -> 0.07994714266 | F20: 17 | G20: =AVERAGEIFS(Table1[BMD],Table1[Age],Table5[[#This Row],[Age]],Table1[Gender],1) -> 1.018882833 | H20: =STDEV(IFERROR(1/(1/((Table1[Age]=Table5[[#This Row],[Age]])*(Table1[Gender]=1)*Table1[BMD])),"")) -> 0.09032347328
B21: 18 | C21: =AVERAGEIFS(Table1[BMD],Table1[Age],Table4[[#This Row],[Age]],Table1[Gender],0) -> 0.9754071715 | D21: =STDEV(IFERROR(1/(1/((Table1[Age]=Table4[[#This Row],[Age]])*(Table1[Gender]=0)*Table1[BMD])),"")) -> 0.05852879142 | F21: 18 | G21: =AVERAGEIFS(Table1[BMD],Table1[Age],Table5[[#This Row],[Age]],Table1[Gender],1) -> 1.062717146 | H21: =STDEV(IFERROR(1/(1/((Table1[Age]=Table5[[#This Row],[Age]])*(Table1[Gender]=1)*Table1[BMD])),"")) -> 0.1318183845
B22: 19 | C22: =AVERAGEIFS(Table1[BMD],Table1[Age],Table4[[#This Row],[Age]],Table1[Gender],0) -> 0.9862851399 | D22: =STDEV(IFERROR(1/(1/((Table1[Age]=Table4[[#This Row],[Age]])*(Table1[Gender]=0)*Table1[BMD])),"")) -> 0.1068026205 | F22: 19 | G22: =AVERAGEIFS(Table1[BMD],Table1[Age],Table5[[#This Row],[Age]],Table1[Gender],1) -> 1.121115959 | H22: =STDEV(IFERROR(1/(1/((Table1[Age]=Table5[[#This Row],[Age]])*(Table1[Gender]=1)*Table1[BMD])),"")) -> 0.1034027445
B23: 20 | C23: =AVERAGEIFS(Table1[BMD],Table1[Age],Table4[[#This Row],[Age]],Table1[Gender],0) -> 0.9728184381 | D23: =STDEV(IFERROR(1/(1/((Table1[Age]=Table4[[#This Row],[Age]])*(Table1[Gender]=0)*Table1[BMD])),"")) -> 0.06842136407 | F23: 20 | G23: =AVERAGEIFS(Table1[BMD],Table1[Age],Table5[[#This Row],[Age]],Table1[Gender],1) -> 1.138342016 | H23: =STDEV(IFERROR(1/(1/((Table1[Age]=Table5[[#This Row],[Age]])*(Table1[Gender]=1)*Table1[BMD])),"")) -> 0.08589869072
B26: Table6 | C26: BMC | F26: Table7 | G26: BMC
B27: Age | C27: Mean | D27: SD | F27: Age | G27: Mean | H27: SD
B28: 3 | C28: =AVERAGEIFS(Table1[BMC],Table1[Age],Table6[[#This Row],[Age]],Table1[Gender],0) -> 316.087413 | D28: =STDEV(IFERROR(1/(1/((Table1[Age]=Table6[[#This Row],[Age]])*(Table1[Gender]=0)*Table1[BMC])),"")) -> 39.17591052 | F28: 3 | G28: =AVERAGEIFS(Table1[BMC],Table1[Age],Table7[[#This Row],[Age]],Table1[Gender],1) -> 398.3691959 | H28: =STDEV(IFERROR(1/(1/((Table1[Age]=Table7[[#This Row],[Age]])*(Table1[Gender]=1)*Table1[BMC])),"")) -> 63.91419814
B29: 4 | C29: =AVERAGEIFS(Table1[BMC],Table1[Age],Table6[[#This Row],[Age]],Table1[Gender],0) -> 407.04334 | D29: =STDEV(IFERROR(1/(1/((Table1[Age]=Table6[[#This Row],[Age]])*(Table1[Gender]=0)*Table1[BMC])),"")) -> 57.59921899 | F29: 4 | G29: =AVERAGEIFS(Table1[BMC],Table1[Age],Table7[[#This Row],[Age]],Table1[Gender],1) -> 414.3453917 | H29: =STDEV(IFERROR(1/(1/((Table1[Age]=Table7[[#This Row],[Age]])*(Table1[Gender]=1)*Table1[BMC])),"")) -> 59.5819145
B30: 5 | C30: =AVERAGEIFS(Table1[BMC],Table1[Age],Table6[[#This Row],[Age]],Table1[Gender],0) -> 410.8406965 | D30: =STDEV(IFERROR(1/(1/((Table1[Age]=Table6[[#This Row],[Age]])*(Table1[Gender]=0)*Table1[BMC])),"")) -> 46.21460293 | F30: 5 | G30: =AVERAGEIFS(Table1[BMC],Table1[Age],Table7[[#This Row],[Age]],Table1[Gender],1) -> 427.604782 | H30: =STDEV(IFERROR(1/(1/((Table1[Age]=Table7[[#This Row],[Age]])*(Table1[Gender]=1)*Table1[BMC])),"")) -> 60.39520786
B31: 6 | C31: =AVERAGEIFS(Table1[BMC],Table1[Age],Table6[[#This Row],[Age]],Table1[Gender],0) -> 485.9836741 | D31: =STDEV(IFERROR(1/(1/((Table1[Age]=Table6[[#This Row],[Age]])*(Table1[Gender]=0)*Table1[BMC])),"")) -> 65.95689248 | F31: 6 | G31: =AVERAGEIFS(Table1[BMC],Table1[Age],Table7[[#This Row],[Age]],Table1[Gender],1) -> 460.5587245 | H31: =STDEV(IFERROR(1/(1/((Table1[Age]=Table7[[#This Row],[Age]])*(Table1[Gender]=1)*Table1[BMC])),"")) -> 74.23124411
B32: 7 | C32: =AVERAGEIFS(Table1[BMC],Table1[Age],Table6[[#This Row],[Age]],Table1[Gender],0) -> 504.6589454 | D32: =STDEV(IFERROR(1/(1/((Table1[Age]=Table6[[#This Row],[Age]])*(Table1[Gender]=0)*Table1[BMC])),"")) -> 96.49763595 | F32: 7 | G32: =AVERAGEIFS(Table1[BMC],Table1[Age],Table7[[#This Row],[Age]],Table1[Gender],1) -> 553.2024133 | H32: =STDEV(IFERROR(1/(1/((Table1[Age]=Table7[[#This Row],[Age]])*(Table1[Gender]=1)*Table1[BMC])),"")) -> 113.4318809
B33: 8 | C33: =AVERAGEIFS(Table1[BMC],Table1[Age],Table6[[#This Row],[Age]],Table1[Gender],0) -> 613.2873416 | D33: =STDEV(IFERROR(1/(1/((Table1[Age]=Table6[[#This Row],[Age]])*(Table1[Gender]=0)*Table1[BMC])),"")) -> 84.94492466 | F33: 8 | G33: =AVERAGEIFS(Table1[BMC],Table1[Age],Table7[[#This Row],[Age]],Table1[Gender],1) -> 637.8231734 | H33: =STDEV(IFERROR(1/(1/((Table1[Age]=Table7[[#This Row],[Age]])*(Table1[Gender]=1)*Table1[BMC])),"")) -> 103.1413885
B34: 9 | C34: =AVERAGEIFS(Table1[BMC],Table1[Age],Table6[[#This Row],[Age]],Table1[Gender],0) -> 694.8421105 | D34: =STDEV(IFERROR(1/(1/((Table1[Age]=Table6[[#This Row],[Age]])*(Table1[Gender]=0)*Table1[BMC])),"")) -> 102.4216988 | F34: 9 | G34: =AVERAGEIFS(Table1[BMC],Table1[Age],Table7[[#This Row],[Age]],Table1[Gender],1) -> 758.1823889 | H34: =STDEV(IFERROR(1/(1/((Table1[Age]=Table7[[#This Row],[Age]])*(Table1[Gender]=1)*Table1[BMC])),"")) -> 149.1469894
B35: 10 | C35: =AVERAGEIFS(Table1[BMC],Table1[Age],Table6[[#This Row],[Age]],Table1[Gender],0) -> 888.7759588 | D35: =STDEV(IFERROR(1/(1/((Table1[Age]=Table6[[#This Row],[Age]])*(Table1[Gender]=0)*Table1[BMC])),"")) -> 185.8904284 | F35: 10 | G35: =AVERAGEIFS(Table1[BMC],Table1[Age],Table7[[#This Row],[Age]],Table1[Gender],1) -> 778.6181634 | H35: =STDEV(IFERROR(1/(1/((Table1[Age]=Table7[[#This Row],[Age]])*(Table1[Gender]=1)*Table1[BMC])),"")) -> 200.3644691
B36: 11 | C36: =AVERAGEIFS(Table1[BMC],Table1[Age],Table6[[#This Row],[Age]],Table1[Gender],0) -> 988.2045154 | D36: =STDEV(IFERROR(1/(1/((Table1[Age]=Table6[[#This Row],[Age]])*(Table1[Gender]=0)*Table1[BMC])),"")) -> 93.84501821 | F36: 11 | G36: =AVERAGEIFS(Table1[BMC],Table1[Age],Table7[[#This Row],[Age]],Table1[Gender],1) -> 892.7996316 | H36: =STDEV(IFERROR(1/(1/((Table1[Age]=Table7[[#This Row],[Age]])*(Table1[Gender]=1)*Table1[BMC])),"")) -> 249.0142586
B37: 12 | C37: =AVERAGEIFS(Table1[BMC],Table1[Age],Table6[[#This Row],[Age]],Table1[Gender],0) -> 1210.002623 | D37: =STDEV(IFERROR(1/(1/((Table1[Age]=Table6[[#This Row],[Age]])*(Table1[Gender]=0)*Table1[BMC])),"")) -> 260.8410082 | F37: 12 | G37: =AVERAGEIFS(Table1[BMC],Table1[Age],Table7[[#This Row],[Age]],Table1[Gender],1) -> 1049.05345 | H37: =STDEV(IFERROR(1/(1/((Table1[Age]=Table7[[#This Row],[Age]])*(Table1[Gender]=1)*Table1[BMC])),"")) -> 240.8207458
B38: 13 | C38: =AVERAGEIFS(Table1[BMC],Table1[Age],Table6[[#This Row],[Age]],Table1[Gender],0) -> 1281.253112 | D38: =STDEV(IFERROR(1/(1/((Table1[Age]=Table6[[#This Row],[Age]])*(Table1[Gender]=0)*Table1[BMC])),"")) -> 173.1673886 | F38: 13 | G38: =AVERAGEIFS(Table1[BMC],Table1[Age],Table7[[#This Row],[Age]],Table1[Gender],1) -> 1170.067952 | H38: =STDEV(IFERROR(1/(1/((Table1[Age]=Table7[[#This Row],[Age]])*(Table1[Gender]=1)*Table1[BMC])),"")) -> 198.6336777
B39: 14 | C39: =AVERAGEIFS(Table1[BMC],Table1[Age],Table6[[#This Row],[Age]],Table1[Gender],0) -> 1392.197028 | D39: =STDEV(IFERROR(1/(1/((Table1[Age]=Table6[[#This Row],[Age]])*(Table1[Gender]=0)*Table1[BMC])),"")) -> 328.3776216 | F39: 14 | G39: =AVERAGEIFS(Table1[BMC],Table1[Age],Table7[[#This Row],[Age]],Table1[Gender],1) -> 1488.999997 | H39: =STDEV(IFERROR(1/(1/((Table1[Age]=Table7[[#This Row],[Age]])*(Table1[Gender]=1)*Table1[BMC])),"")) -> 400.1410987
B40: 15 | C40: =AVERAGEIFS(Table1[BMC],Table1[Age],Table6[[#This Row],[Age]],Table1[Gender],0) -> 1571.642261 | D40: =STDEV(IFERROR(1/(1/((Table1[Age]=Table6[[#This Row],[Age]])*(Table1[Gender]=0)*Table1[BMC])),"")) -> 311.1002423 | F40: 15 | G40: =AVERAGEIFS(Table1[BMC],Table1[Age],Table7[[#This Row],[Age]],Table1[Gender],1) -> 1916.70916 | H40: =STDEV(IFERROR(1/(1/((Table1[Age]=Table7[[#This Row],[Age]])*(Table1[Gender]=1)*Table1[BMC])),"")) -> 266.2958833
B41: 16 | C41: =AVERAGEIFS(Table1[BMC],Table1[Age],Table6[[#This Row],[Age]],Table1[Gender],0) -> 1545.015812 | D41: =STDEV(IFERROR(1/(1/((Table1[Age]=Table6[[#This Row],[Age]])*(Table1[Gender]=0)*Table1[BMC])),"")) -> 163.7549635 | F41: 16 | G41: =AVERAGEIFS(Table1[BMC],Table1[Age],Table7[[#This Row],[Age]],Table1[Gender],1) -> 1938.172566 | H41: =STDEV(IFERROR(1/(1/((Table1[Age]=Table7[[#This Row],[Age]])*(Table1[Gender]=1)*Table1[BMC])),"")) -> 289.0326395
B42: 17 | C42: =AVERAGEIFS(Table1[BMC],Table1[Age],Table6[[#This Row],[Age]],Table1[Gender],0) -> 1572.672507 | D42: =STDEV(IFERROR(1/(1/((Table1[Age]=Table6[[#This Row],[Age]])*(Table1[Gender]=0)*Table1[BMC])),"")) -> 223.7132431 | F42: 17 | G42: =AVERAGEIFS(Table1[BMC],Table1[Age],Table7[[#This Row],[Age]],Table1[Gender],1) -> 2016.753792 | H42: =STDEV(IFERROR(1/(1/((Table1[Age]=Table7[[#This Row],[Age]])*(Table1[Gender]=1)*Table1[BMC])),"")) -> 561.9427504
B43: 18 | C43: =AVERAGEIFS(Table1[BMC],Table1[Age],Table6[[#This Row],[Age]],Table1[Gender],0) -> 1615.579341 | D43: =STDEV(IFERROR(1/(1/((Table1[Age]=Table6[[#This Row],[Age]])*(Table1[Gender]=0)*Table1[BMC])),"")) -> 183.1658923 | F43: 18 | G43: =AVERAGEIFS(Table1[BMC],Table1[Age],Table7[[#This Row],[Age]],Table1[Gender],1) -> 2099.045116 | H43: =STDEV(IFERROR(1/(1/((Table1[Age]=Table7[[#This Row],[Age]])*(Table1[Gender]=1)*Table1[BMC])),"")) -> 633.5357737
B44: 19 | C44: =AVERAGEIFS(Table1[BMC],Table1[Age],Table6[[#This Row],[Age]],Table1[Gender],0) -> 1789.965698 | D44: =STDEV(IFERROR(1/(1/((Table1[Age]=Table6[[#This Row],[Age]])*(Table1[Gender]=0)*Table1[BMC])),"")) -> 217.2568817 | F44: 19 | G44: =AVERAGEIFS(Table1[BMC],Table1[Age],Table7[[#This Row],[Age]],Table1[Gender],1) -> 2186.800946 | H44: =STDEV(IFERROR(1/(1/((Table1[Age]=Table7[[#This Row],[Age]])*(Table1[Gender]=1)*Table1[BMC])),"")) -> 573.0920258
B45: 20 | C45: =AVERAGEIFS(Table1[BMC],Table1[Age],Table6[[#This Row],[Age]],Table1[Gender],0) -> 1482.659751 | D45: =STDEV(IFERROR(1/(1/((Table1[Age]=Table6[[#This Row],[Age]])*(Table1[Gender]=0)*Table1[BMC])),"")) -> 307.7744064 | F45: 20 | G45: =AVERAGEIFS(Table1[BMC],Table1[Age],Table7[[#This Row],[Age]],Table1[Gender],1) -> 2402.802751 | H45: =STDEV(IFERROR(1/(1/((Table1[Age]=Table7[[#This Row],[Age]])*(Table1[Gender]=1)*Table1[BMC])),"")) -> 369.7807609
B48: Table8 | C48: Neck | F48: Table9 | G48: Neck
B49: Age | C49: Mean | D49: SD | F49: Age | G49: Mean | H49: SD
B50: 3 | C50: =AVERAGEIFS(Table1[Neck],Table1[Age],Table8[[#This Row],[Age]],Table1[Gender],0) -> 1.848992361 | D50: =STDEV(IFERROR(1/(1/((Table1[Age]=Table8[[#This Row],[Age]])*(Table1[Gender]=0)*Table1[Neck])),"")) -> 0.0800641188 | F50: 3 | G50: =AVERAGEIFS(Table1[Neck],Table1[Age],Table9[[#This Row],[Age]],Table1[Gender],1) -> 0.8284811365 | H50: =STDEV(IFERROR(1/(1/((Table1[Age]=Table9[[#This Row],[Age]])*(Table1[Gender]=1)*Table1[Neck])),"")) -> 0.09776206735
B51: 4 | C51: =AVERAGEIFS(Table1[Neck],Table1[Age],Table8[[#This Row],[Age]],Table1[Gender],0) -> 1.854254572 | D51: =STDEV(IFERROR(1/(1/((Table1[Age]=Table8[[#This Row],[Age]])*(Table1[Gender]=0)*Table1[Neck])),"")) -> 0.4044780017 | F51: 4 | G51: =AVERAGEIFS(Table1[Neck],Table1[Age],Table9[[#This Row],[Age]],Table1[Gender],1) -> 0.8387950081 | H51: =STDEV(IFERROR(1/(1/((Table1[Age]=Table9[[#This Row],[Age]])*(Table1[Gender]=1)*Table1[Neck])),"")) -> 0.08649003123
B52: 5 | C52: =AVERAGEIFS(Table1[Neck],Table1[Age],Table8[[#This Row],[Age]],Table1[Gender],0) -> 1.694818459 | D52: =STDEV(IFERROR(1/(1/((Table1[Age]=Table8[[#This Row],[Age]])*(Table1[Gender]=0)*Table1[Neck])),"")) -> 0.08368988582 | F52: 5 | G52: =AVERAGEIFS(Table1[Neck],Table1[Age],Table9[[#This Row],[Age]],Table1[Gender],1) -> 0.7805572539 | H52: =STDEV(IFERROR(1/(1/((Table1[Age]=Table9[[#This Row],[Age]])*(Table1[Gender]=1)*Table1[Neck])),"")) -> 0.1490438526
B53: 6 | C53: =AVERAGEIFS(Table1[Neck],Table1[Age],Table8[[#This Row],[Age]],Table1[Gender],0) -> 1.549124237 | D53: =STDEV(IFERROR(1/(1/((Table1[Age]=Table8[[#This Row],[Age]])*(Table1[Gender]=0)*Table1[Neck])),"")) -> 0.2155690756 | F53: 6 | G53: =AVERAGEIFS(Table1[Neck],Table1[Age],Table9[[#This Row],[Age]],Table1[Gender],1) -> 0.8212905544 | H53: =STDEV(IFERROR(1/(1/((Table1[Age]=Table9[[#This Row],[Age]])*(Table1[Gender]=1)*Table1[Neck])),"")) -> 0.125486745
B54: 7 | C54: =AVERAGEIFS(Table1[Neck],Table1[Age],Table8[[#This Row],[Age]],Table1[Gender],0) -> 1.575594055 | D54: =STDEV(IFERROR(1/(1/((Table1[Age]=Table8[[#This Row],[Age]])*(Table1[Gender]=0)*Table1[Neck])),"")) -> 0.1097851658 | F54: 7 | G54: =AVERAGEIFS(Table1[Neck],Table1[Age],Table9[[#This Row],[Age]],Table1[Gender],1) -> 0.8807206453 | H54: =STDEV(IFERROR(1/(1/((Table1[Age]=Table9[[#This Row],[Age]])*(Table1[Gender]=1)*Table1[Neck])),"")) -> 0.1009658723
B55: 8 | C55: =AVERAGEIFS(Table1[Neck],Table1[Age],Table8[[#This Row],[Age]],Table1[Gender],0) -> 1.462368303 | D55: =STDEV(IFERROR(1/(1/((Table1[Age]=Table8[[#This Row],[Age]])*(Table1[Gender]=0)*Table1[Neck])),"")) -> 0.1106223191 | F55: 8 | G55: =AVERAGEIFS(Table1[Neck],Table1[Age],Table9[[#This Row],[Age]],Table1[Gender],1) -> 0.9244373782 | H55: =STDEV(IFERROR(1/(1/((Table1[Age]=Table9[[#This Row],[Age]])*(Table1[Gender]=1)*Table1[Neck])),"")) -> 0.1275890754
B56: 9 | C56: =AVERAGEIFS(Table1[Neck],Table1[Age],Table8[[#This Row],[Age]],Table1[Gender],0) -> 1.229652511 | D56: =STDEV(IFERROR(1/(1/((Table1[Age]=Table8[[#This Row],[Age]])*(Table1[Gender]=0)*Table1[Neck])),"")) -> 0.09936253484 | F56: 9 | G56: =AVERAGEIFS(Table1[Neck],Table1[Age],Table9[[#This Row],[Age]],Table1[Gender],1) -> 0.9089621222 | H56: =STDEV(IFERROR(1/(1/((Table1[Age]=Table9[[#This Row],[Age]])*(Table1[Gender]=1)*Table1[Neck])),"")) -> 0.1073233311
B57: 10 | C57: =AVERAGEIFS(Table1[Neck],Table1[Age],Table8[[#This Row],[Age]],Table1[Gender],0) -> 1.255568803 | D57: =STDEV(IFERROR(1/(1/((Table1[Age]=Table8[[#This Row],[Age]])*(Table1[Gender]=0)*Table1[Neck])),"")) -> 0.07711211063 | F57: 10 | G57: =AVERAGEIFS(Table1[Neck],Table1[Age],Table9[[#This Row],[Age]],Table1[Gender],1) -> 0.9826500462 | H57: =STDEV(IFERROR(1/(1/((Table1[Age]=Table9[[#This Row],[Age]])*(Table1[Gender]=1)*Table1[Neck])),"")) -> 0.1606666227
B58: 11 | C58: =AVERAGEIFS(Table1[Neck],Table1[Age],Table8[[#This Row],[Age]],Table1[Gender],0) -> 1.128515631 | D58: =STDEV(IFERROR(1/(1/((Table1[Age]=Table8[[#This Row],[Age]])*(Table1[Gender]=0)*Table1[Neck])),"")) -> 0.07391521479 | F58: 11 | G58: =AVERAGEIFS(Table1[Neck],Table1[Age],Table9[[#This Row],[Age]],Table1[Gender],1) -> 0.9802415189 | H58: =STDEV(IFERROR(1/(1/((Table1[Age]=Table9[[#This Row],[Age]])*(Table1[Gender]=1)*Table1[Neck])),"")) -> 0.0928016844
B59: 12 | C59: =AVERAGEIFS(Table1[Neck],Table1[Age],Table8[[#This Row],[Age]],Table1[Gender],0) -> 1.024600383 | D59: =STDEV(IFERROR(1/(1/((Table1[Age]=Table8[[#This Row],[Age]])*(Table1[Gender]=0)*Table1[Neck])),"")) -> 0.1025745504 | F59: 12 | G59: =AVERAGEIFS(Table1[Neck],Table1[Age],Table9[[#This Row],[Age]],Table1[Gender],1) -> 0.9579712119 | H59: =STDEV(IFERROR(1/(1/((Table1[Age]=Table9[[#This Row],[Age]])*(Table1[Gender]=1)*Table1[Neck])),"")) -> 0.09048339795
B60: 13 | C60: =AVERAGEIFS(Table1[Neck],Table1[Age],Table8[[#This Row],[Age]],Table1[Gender],0) -> 0.9555959773 | D60: =STDEV(IFERROR(1/(1/((Table1[Age]=Table8[[#This Row],[Age]])*(Table1[Gender]=0)*Table1[Neck])),"")) -> 0.1330527886 | F60: 13 | G60: =AVERAGEIFS(Table1[Neck],Table1[Age],Table9[[#This Row],[Age]],Table1[Gender],1) -> 0.9861336947 | H60: =STDEV(IFERROR(1/(1/((Table1[Age]=Table9[[#This Row],[Age]])*(Table1[Gender]=1)*Table1[Neck])),"")) -> 0.09220444762
B61: 14 | C61: =AVERAGEIFS(Table1[Neck],Table1[Age],Table8[[#This Row],[Age]],Table1[Gender],0) -> 0.9187736534 | D61: =STDEV(IFERROR(1/(1/((Table1[Age]=Table8[[#This Row],[Age]])*(Table1[Gender]=0)*Table1[Neck])),"")) -> 0.1098732606 | F61: 14 | G61: =AVERAGEIFS(Table1[Neck],Table1[Age],Table9[[#This Row],[Age]],Table1[Gender],1) -> 1.046040614 | H61: =STDEV(IFERROR(1/(1/((Table1[Age]=Table9[[#This Row],[Age]])*(Table1[Gender]=1)*Table1[Neck])),"")) -> 0.06558782326
B62: 15 | C62: =AVERAGEIFS(Table1[Neck],Table1[Age],Table8[[#This Row],[Age]],Table1[Gender],0) -> 0.7674345979 | D62: =STDEV(IFERROR(1/(1/((Table1[Age]=Table8[[#This Row],[Age]])*(Table1[Gender]=0)*Table1[Neck])),"")) -> 0.1035934692 | F62: 15 | G62: =AVERAGEIFS(Table1[Neck],Table1[Age],Table9[[#This Row],[Age]],Table1[Gender],1) -> 1.093488811 | H62: =STDEV(IFERROR(1/(1/((Table1[Age]=Table9[[#This Row],[Age]])*(Table1[Gender]=1)*Table1[Neck])),"")) -> 0.07888943507
B63: 16 | C63: =AVERAGEIFS(Table1[Neck],Table1[Age],Table8[[#This Row],[Age]],Table1[Gender],0) -> 0.6825734735 | D63: =STDEV(IFERROR(1/(1/((Table1[Age]=Table8[[#This Row],[Age]])*(Table1[Gender]=0)*Table1[Neck])),"")) -> 0.1052072265 | F63: 16 | G63: =AVERAGEIFS(Table1[Neck],Table1[Age],Table9[[#This Row],[Age]],Table1[Gender],1) -> 1.022155349 | H63: =STDEV(IFERROR(1/(1/((Table1[Age]=Table9[[#This Row],[Age]])*(Table1[Gender]=1)*Table1[Neck])),"")) -> 0.1730513818
B64: 17 | C64: =AVERAGEIFS(Table1[Neck],Table1[Age],Table8[[#This Row],[Age]],Table1[Gender],0) -> 0.6076420383 | D64: =STDEV(IFERROR(1/(1/((Table1[Age]=Table8[[#This Row],[Age]])*(Table1[Gender]=0)*Table1[Neck])),"")) -> 0.1111482351 | F64: 17 | G64: =AVERAGEIFS(Table1[Neck],Table1[Age],Table9[[#This Row],[Age]],Table1[Gender],1) -> 1.072918548 | H64: =STDEV(IFERROR(1/(1/((Table1[Age]=Table9[[#This Row],[Age]])*(Table1[Gender]=1)*Table1[Neck])),"")) -> 0.06942827794
B65: 18 | C65: =AVERAGEIFS(Table1[Neck],Table1[Age],Table8[[#This Row],[Age]],Table1[Gender],0) -> 0.4821528653 | D65: =STDEV(IFERROR(1/(1/((Table1[Age]=Table8[[#This Row],[Age]])*(Table1[Gender]=0)*Table1[Neck])),"")) -> 0.09213531543 | F65: 18 | G65: =AVERAGEIFS(Table1[Neck],Table1[Age],Table9[[#This Row],[Age]],Table1[Gender],1) -> 1.104476402 | H65: =STDEV(IFERROR(1/(1/((Table1[Age]=Table9[[#This Row],[Age]])*(Table1[Gender]=1)*Table1[Neck])),"")) -> 0.1128667328
B66: 19 | C66: =AVERAGEIFS(Table1[Neck],Table1[Age],Table8[[#This Row],[Age]],Table1[Gender],0) -> 0.3452183391 | D66: =STDEV(IFERROR(1/(1/((Table1[Age]=Table8[[#This Row],[Age]])*(Table1[Gender]=0)*Table1[Neck])),"")) -> 0.06975266664 | F66: 19 | G66: =AVERAGEIFS(Table1[Neck],Table1[Age],Table9[[#This Row],[Age]],Table1[Gender],1) -> 1.144407835 | H66: =STDEV(IFERROR(1/(1/((Table1[Age]=Table9[[#This Row],[Age]])*(Table1[Gender]=1)*Table1[Neck])),"")) -> 0.112812621
B67: 20 | C67: =AVERAGEIFS(Table1[Neck],Table1[Age],Table8[[#This Row],[Age]],Table1[Gender],0) -> 0.2590954502 | D67: =STDEV(IFERROR(1/(1/((Table1[Age]=Table8[[#This Row],[Age]])*(Table1[Gender]=0)*Table1[Neck])),"")) -> 0.09258079138 | F67: 20 | G67: =AVERAGEIFS(Table1[Neck],Table1[Age],Table9[[#This Row],[Age]],Table1[Gender],1) -> 1.164846199 | H67: =STDEV(IFERROR(1/(1/((Table1[Age]=Table9[[#This Row],[Age]])*(Table1[Gender]=1)*Table1[Neck])),"")) -> 0.0682824279
B70: Table2 | C70: Spine | F70: Table3 | G70: Spine
B71: Age | C71: Mean | D71: SD | F71: Age | G71: Mean | H71: SD
B72: 3 | C72: =AVERAGEIFS(Table1[Spine],Table1[Age],Table2[[#This Row],[Age]],Table1[Gender],0) -> 0.45732093 | D72: =STDEV(IFERROR(1/(1/((Table1[Age]=Table2[[#This Row],[Age]])*(Table1[Gender]=0)*Table1[Spine])),"")) -> 0.03870328757 | F72: 3 | G72: =AVERAGEIFS(Table1[Spine],Table1[Age],Table3[[#This Row],[Age]],Table1[Gender],1) -> 0.3676841832 | H72: =STDEV(IFERROR(1/(1/((Table1[Age]=Table3[[#This Row],[Age]])*(Table1[Gender]=1)*Table1[Spine])),"")) -> 0.0507898122
B73: 4 | C73: =AVERAGEIFS(Table1[Spine],Table1[Age],Table2[[#This Row],[Age]],Table1[Gender],0) -> 0.4784830669 | D73: =STDEV(IFERROR(1/(1/((Table1[Age]=Table2[[#This Row],[Age]])*(Table1[Gender]=0)*Table1[Spine])),"")) -> 0.07038692492 | F73: 4 | G73: =AVERAGEIFS(Table1[Spine],Table1[Age],Table3[[#This Row],[Age]],Table1[Gender],1) -> 0.4059334022 | H73: =STDEV(IFERROR(1/(1/((Table1[Age]=Table3[[#This Row],[Age]])*(Table1[Gender]=1)*Table1[Spine])),"")) -> 0.04572944917
B74: 5 | C74: =AVERAGEIFS(Table1[Spine],Table1[Age],Table2[[#This Row],[Age]],Table1[Gender],0) -> 0.4532246012 | D74: =STDEV(IFERROR(1/(1/((Table1[Age]=Table2[[#This Row],[Age]])*(Table1[Gender]=0)*Table1[Spine])),"")) -> 0.04754613579 | F74: 5 | G74: =AVERAGEIFS(Table1[Spine],Table1[Age],Table3[[#This Row],[Age]],Table1[Gender],1) -> 0.3855794179 | H74: =STDEV(IFERROR(1/(1/((Table1[Age]=Table3[[#This Row],[Age]])*(Table1[Gender]=1)*Table1[Spine])),"")) -> 0.06572956909
B75: 6 | C75: =AVERAGEIFS(Table1[Spine],Table1[Age],Table2[[#This Row],[Age]],Table1[Gender],0) -> 0.4577142612 | D75: =STDEV(IFERROR(1/(1/((Table1[Age]=Table2[[#This Row],[Age]])*(Table1[Gender]=0)*Table1[Spine])),"")) -> 0.04564514418 | F75: 6 | G75: =AVERAGEIFS(Table1[Spine],Table1[Age],Table3[[#This Row],[Age]],Table1[Gender],1) -> 0.3935292965 | H75: =STDEV(IFERROR(1/(1/((Table1[Age]=Table3[[#This Row],[Age]])*(Table1[Gender]=1)*Table1[Spine])),"")) -> 0.03127574469
B76: 7 | C76: =AVERAGEIFS(Table1[Spine],Table1[Age],Table2[[#This Row],[Age]],Table1[Gender],0) -> 0.467873887 | D76: =STDEV(IFERROR(1/(1/((Table1[Age]=Table2[[#This Row],[Age]])*(Table1[Gender]=0)*Table1[Spine])),"")) -> 0.0581460194 | F76: 7 | G76: =AVERAGEIFS(Table1[Spine],Table1[Age],Table3[[#This Row],[Age]],Table1[Gender],1) -> 0.3847325116 | H76: =STDEV(IFERROR(1/(1/((Table1[Age]=Table3[[#This Row],[Age]])*(Table1[Gender]=1)*Table1[Spine])),"")) -> 0.05256355409
B77: 8 | C77: =AVERAGEIFS(Table1[Spine],Table1[Age],Table2[[#This Row],[Age]],Table1[Gender],0) -> 0.4758290558 | D77: =STDEV(IFERROR(1/(1/((Table1[Age]=Table2[[#This Row],[Age]])*(Table1[Gender]=0)*Table1[Spine])),"")) -> 0.09903407861 | F77: 8 | G77: =AVERAGEIFS(Table1[Spine],Table1[Age],Table3[[#This Row],[Age]],Table1[Gender],1) -> 0.3983151312 | H77: =STDEV(IFERROR(1/(1/((Table1[Age]=Table3[[#This Row],[Age]])*(Table1[Gender]=1)*Table1[Spine])),"")) -> 0.05693009946
B78: 9 | C78: =AVERAGEIFS(Table1[Spine],Table1[Age],Table2[[#This Row],[Age]],Table1[Gender],0) -> 0.440495552 | D78: =STDEV(IFERROR(1/(1/((Table1[Age]=Table2[[#This Row],[Age]])*(Table1[Gender]=0)*Table1[Spine])),"")) -> 0.04775311381 | F78: 9 | G78: =AVERAGEIFS(Table1[Spine],Table1[Age],Table3[[#This Row],[Age]],Table1[Gender],1) -> 0.3855650669 | H78: =STDEV(IFERROR(1/(1/((Table1[Age]=Table3[[#This Row],[Age]])*(Table1[Gender]=1)*Table1[Spine])),"")) -> 0.04031646331
B79: 10 | C79: =AVERAGEIFS(Table1[Spine],Table1[Age],Table2[[#This Row],[Age]],Table1[Gender],0) -> 0.4252916854 | D79: =STDEV(IFERROR(1/(1/((Table1[Age]=Table2[[#This Row],[Age]])*(Table1[Gender]=0)*Table1[Spine])),"")) -> 0.04239127552 | F79: 10 | G79: =AVERAGEIFS(Table1[Spine],Table1[Age],Table3[[#This Row],[Age]],Table1[Gender],1) -> 0.3787907362 | H79: =STDEV(IFERROR(1/(1/((Table1[Age]=Table3[[#This Row],[Age]])*(Table1[Gender]=1)*Table1[Spine])),"")) -> 0.02690412361
B80: 11 | C80: =AVERAGEIFS(Table1[Spine],Table1[Age],Table2[[#This Row],[Age]],Table1[Gender],0) -> 0.4102363839 | D80: =STDEV(IFERROR(1/(1/((Table1[Age]=Table2[[#This Row],[Age]])*(Table1[Gender]=0)*Table1[Spine])),"")) -> 0.06017884706 | F80: 11 | G80: =AVERAGEIFS(Table1[Spine],Table1[Age],Table3[[#This Row],[Age]],Table1[Gender],1) -> 0.3611145394 | H80: =STDEV(IFERROR(1/(1/((Table1[Age]=Table3[[#This Row],[Age]])*(Table1[Gender]=1)*Table1[Spine])),"")) -> 0.08553586334
B81: 12 | C81: =AVERAGEIFS(Table1[Spine],Table1[Age],Table2[[#This Row],[Age]],Table1[Gender],0) -> 0.4198507896 | D81: =STDEV(IFERROR(1/(1/((Table1[Age]=Table2[[#This Row],[Age]])*(Table1[Gender]=0)*Table1[Spine])),"")) -> 0.05178567083 | F81: 12 | G81: =AVERAGEIFS(Table1[Spine],Table1[Age],Table3[[#This Row],[Age]],Table1[Gender],1) -> 0.3723827191 | H81: =STDEV(IFERROR(1/(1/((Table1[Age]=Table3[[#This Row],[Age]])*(Table1[Gender]=1)*Table1[Spine])),"")) -> 0.03690715778
B82: 13 | C82: =AVERAGEIFS(Table1[Spine],Table1[Age],Table2[[#This Row],[Age]],Table1[Gender],0) -> 0.415758711 | D82: =STDEV(IFERROR(1/(1/((Table1[Age]=Table2[[#This Row],[Age]])*(Table1[Gender]=0)*Table1[Spine])),"")) -> 0.02962984569 | F82: 13 | G82: =AVERAGEIFS(Table1[Spine],Table1[Age],Table3[[#This Row],[Age]],Table1[Gender],1) -> 0.3683856128 | H82: =STDEV(IFERROR(1/(1/((Table1[Age]=Table3[[#This Row],[Age]])*(Table1[Gender]=1)*Table1[Spine])),"")) -> 0.06174741765
B83: 14 | C83: =AVERAGEIFS(Table1[Spine],Table1[Age],Table2[[#This Row],[Age]],Table1[Gender],0) -> 0.4125683691 | D83: =STDEV(IFERROR(1/(1/((Table1[Age]=Table2[[#This Row],[Age]])*(Table1[Gender]=0)*Table1[Spine])),"")) -> 0.04382451617 | F83: 14 | G83: =AVERAGEIFS(Table1[Spine],Table1[Age],Table3[[#This Row],[Age]],Table1[Gender],1) -> 0.3897019534 | H83: =STDEV(IFERROR(1/(1/((Table1[Age]=Table3[[#This Row],[Age]])*(Table1[Gender]=1)*Table1[Spine])),"")) -> 0.04223575207
B84: 15 | C84: =AVERAGEIFS(Table1[Spine],Table1[Age],Table2[[#This Row],[Age]],Table1[Gender],0) -> 0.4070949693 | D84: =STDEV(IFERROR(1/(1/((Table1[Age]=Table2[[#This Row],[Age]])*(Table1[Gender]=0)*Table1[Spine])),"")) -> 0.04479084505 | F84: 15 | G84: =AVERAGEIFS(Table1[Spine],Table1[Age],Table3[[#This Row],[Age]],Table1[Gender],1) -> 0.3706107533 | H84: =STDEV(IFERROR(1/(1/((Table1[Age]=Table3[[#This Row],[Age]])*(Table1[Gender]=1)*Table1[Spine])),"")) -> 0.03894897568
B85: 16 | C85: =AVERAGEIFS(Table1[Spine],Table1[Age],Table2[[#This Row],[Age]],Table1[Gender],0) -> 0.38075976 | D85: =STDEV(IFERROR(1/(1/((Table1[Age]=Table2[[#This Row],[Age]])*(Table1[Gender]=0)*Table1[Spine])),"")) -> 0.02864518041 | F85: 16 | G85: =AVERAGEIFS(Table1[Spine],Table1[Age],Table3[[#This Row],[Age]],Table1[Gender],1) -> 0.3595405324 | H85: =STDEV(IFERROR(1/(1/((Table1[Age]=Table3[[#This Row],[Age]])*(Table1[Gender]=1)*Table1[Spine])),"")) -> 0.07291737527
B86: 17 | C86: =AVERAGEIFS(Table1[Spine],Table1[Age],Table2[[#This Row],[Age]],Table1[Gender],0) -> 0.4053121982 | D86: =STDEV(IFERROR(1/(1/((Table1[Age]=Table2[[#This Row],[Age]])*(Table1[Gender]=0)*Table1[Spine])),"")) -> 0.03772022072 | F86: 17 | G86: =AVERAGEIFS(Table1[Spine],Table1[Age],Table3[[#This Row],[Age]],Table1[Gender],1) -> 0.371845923 | H86: =STDEV(IFERROR(1/(1/((Table1[Age]=Table3[[#This Row],[Age]])*(Table1[Gender]=1)*Table1[Spine])),"")) -> 0.04236808015
B87: 18 | C87: =AVERAGEIFS(Table1[Spine],Table1[Age],Table2[[#This Row],[Age]],Table1[Gender],0) -> 0.3829615931 | D87: =STDEV(IFERROR(1/(1/((Table1[Age]=Table2[[#This Row],[Age]])*(Table1[Gender]=0)*Table1[Spine])),"")) -> 0.0303518692 | F87: 18 | G87: =AVERAGEIFS(Table1[Spine],Table1[Age],Table3[[#This Row],[Age]],Table1[Gender],1) -> 0.3715199791 | H87: =STDEV(IFERROR(1/(1/((Table1[Age]=Table3[[#This Row],[Age]])*(Table1[Gender]=1)*Table1[Spine])),"")) -> 0.03991297557
B88: 19 | C88: =AVERAGEIFS(Table1[Spine],Table1[Age],Table2[[#This Row],[Age]],Table1[Gender],0) -> 0.3970280618 | D88: =STDEV(IFERROR(1/(1/((Table1[Age]=Table2[[#This Row],[Age]])*(Table1[Gender]=0)*Table1[Spine])),"")) -> 0.03996176937 | F88: 19 | G88: =AVERAGEIFS(Table1[Spine],Table1[Age],Table3[[#This Row],[Age]],Table1[Gender],1) -> 0.3524476769 | H88: =STDEV(IFERROR(1/(1/((Table1[Age]=Table3[[#This Row],[Age]])*(Table1[Gender]=1)*Table1[Spine])),"")) -> 0.03196727109
B89: 20 | C89: =AVERAGEIFS(Table1[Spine],Table1[Age],Table2[[#This Row],[Age]],Table1[Gender],0) -> 0.3579826925 | D89: =STDEV(IFERROR(1/(1/((Table1[Age]=Table2[[#This Row],[Age]])*(Table1[Gender]=0)*Table1[Spine])),"")) -> 0.03115685723 | F89: 20 | G89: =AVERAGEIFS(Table1[Spine],Table1[Age],Table3[[#This Row],[Age]],Table1[Gender],1) -> 0.3737141113 | H89: =STDEV(IFERROR(1/(1/((Table1[Age]=Table3[[#This Row],[Age]])*(Table1[Gender]=1)*Table1[Spine])),"")) -> 0.03453716338

Sheet ZScore
B2: Table11 | C2: BMD
B3: ID | C3: Gender | D3: Age | E3: Meas | F3: ZSCORE
B4: R8771 | C4: =INDEX(Table1[Gender],MATCH(Table11[[#This Row],[ID]],Table1[ID],0)) -> 0 | D4: =INDEX(Table1[Age],MATCH(Table11[[#This Row],[ID]],Table1[ID],0)) -> 10 | E4: =INDEX(Table1[BMD],MATCH(Table11[[#This Row],[ID]],Table1[ID],0)) -> 0.5435333446 | F4: =(Table11[[#This Row],[Meas]]-INDEX(INDIRECT("Table"&4+Table11[[#This Row],[Gender]]&"[Mean]"),MATCH(Table11[[#This Row],[Age]],INDIRECT("Table"&4+Table11[[#This Row],[Gender]]&"[Age]"),0)))/INDEX(INDIRECT("Table"&4+Table11[[#This Row],[Gender]]&"[SD]"),MATCH(Table11[[#This Row],[Age]],INDIRECT("Table"&4+Table11[[#This Row],[Gender]]&"[Age]"),0)) -> -2.383608154
B5: X3485 | C5: =INDEX(Table1[Gender],MATCH(Table11[[#This Row],[ID]],Table1[ID],0)) -> 0 | D5: =INDEX(Table1[Age],MATCH(Table11[[#This Row],[ID]],Table1[ID],0)) -> 12 | E5: =INDEX(Table1[BMD],MATCH(Table11[[#This Row],[ID]],Table1[ID],0)) -> 0.9298197429 | F5: =(Table11[[#This Row],[Meas]]-INDEX(INDIRECT("Table"&4+Table11[[#This Row],[Gender]]&"[Mean]"),MATCH(Table11[[#This Row],[Age]],INDIRECT("Table"&4+Table11[[#This Row],[Gender]]&"[Age]"),0)))/INDEX(INDIRECT("Table"&4+Table11[[#This Row],[Gender]]&"[SD]"),MATCH(Table11[[#This Row],[Age]],INDIRECT("Table"&4+Table11[[#This Row],[Gender]]&"[Age]"),0)) -> 0.495107251
B6: B6749 | C6: =INDEX(Table1[Gender],MATCH(Table11[[#This Row],[ID]],Table1[ID],0)) -> 0 | D6: =INDEX(Table1[Age],MATCH(Table11[[#This Row],[ID]],Table1[ID],0)) -> 8 | E6: =INDEX(Table1[BMD],MATCH(Table11[[#This Row],[ID]],Table1[ID],0)) -> 0.58917764 | F6: =(Table11[[#This Row],[Meas]]-INDEX(INDIRECT("Table"&4+Table11[[#This Row],[Gender]]&"[Mean]"),MATCH(Table11[[#This Row],[Age]],INDIRECT("Table"&4+Table11[[#This Row],[Gender]]&"[Age]"),0)))/INDEX(INDIRECT("Table"&4+Table11[[#This Row],[Gender]]&"[SD]"),MATCH(Table11[[#This Row],[Age]],INDIRECT("Table"&4+Table11[[#This Row],[Gender]]&"[Age]"),0)) -> -1.041895476
B7: H6014 | C7: =INDEX(Table1[Gender],MATCH(Table11[[#This Row],[ID]],Table1[ID],0)) -> 0 | D7: =INDEX(Table1[Age],MATCH(Table11[[#This Row],[ID]],Table1[ID],0)) -> 12 | E7: =INDEX(Table1[BMD],MATCH(Table11[[#This Row],[ID]],Table1[ID],0)) -> 0.8495850014 | F7: =(Table11[[#This Row],[Meas]]-INDEX(INDIRECT("Table"&4+Table11[[#This Row],[Gender]]&"[Mean]"),MATCH(Table11[[#This Row],[Age]],INDIRECT("Table"&4+Table11[[#This Row],[Gender]]&"[Age]"),0)))/INDEX(INDIRECT("Table"&4+Table11[[#This Row],[Gender]]&"[SD]"),MATCH(Table11[[#This Row],[Age]],INDIRECT("Table"&4+Table11[[#This Row],[Gender]]&"[Age]"),0)) -> -0.197748033
B8: Q1226 | C8: =INDEX(Table1[Gender],MATCH(Table11[[#This Row],[ID]],Table1[ID],0)) -> 0 | D8: =INDEX(Table1[Age],MATCH(Table11[[#This Row],[ID]],Table1[ID],0)) -> 9 | E8: =INDEX(Table1[BMD],MATCH(Table11[[#This Row],[ID]],Table1[ID],0)) -> 0.6068503121 | F8: =(Table11[[#This Row],[Meas]]-INDEX(INDIRECT("Table"&4+Table11[[#This Row],[Gender]]&"[Mean]"),MATCH(Table11[[#This Row],[Age]],INDIRECT("Table"&4+Table11[[#This Row],[Gender]]&"[Age]"),0)))/INDEX(INDIRECT("Table"&4+Table11[[#This Row],[Gender]]&"[SD]"),MATCH(Table11[[#This Row],[Age]],INDIRECT("Table"&4+Table11[[#This Row],[Gender]]&"[Age]"),0)) -> -0.6374682709
B9: G4434 | C9: =INDEX(Table1[Gender],MATCH(Table11[[#This Row],[ID]],Table1[ID],0)) -> 0 | D9: =INDEX(Table1[Age],MATCH(Table11[[#This Row],[ID]],Table1[ID],0)) -> 15 | E9: =INDEX(Table1[BMD],MATCH(Table11[[#This Row],[ID]],Table1[ID],0)) -> 0.9038372627 | F9: =(Table11[[#This Row],[Meas]]-INDEX(INDIRECT("Table"&4+Table11[[#This Row],[Gender]]&"[Mean]"),MATCH(Table11[[#This Row],[Age]],INDIRECT("Table"&4+Table11[[#This Row],[Gender]]&"[Age]"),0)))/INDEX(INDIRECT("Table"&4+Table11[[#This Row],[Gender]]&"[SD]"),MATCH(Table11[[#This Row],[Age]],INDIRECT("Table"&4+Table11[[#This Row],[Gender]]&"[Age]"),0)) -> -0.2114430785
B10: G7384 | C10: =INDEX(Table1[Gender],MATCH(Table11[[#This Row],[ID]],Table1[ID],0)) -> 0 | D10: =INDEX(Table1[Age],MATCH(Table11[[#This Row],[ID]],Table1[ID],0)) -> 16 | E10: =INDEX(Table1[BMD],MATCH(Table11[[#This Row],[ID]],Table1[ID],0)) -> 0.8101648003 | F10: =(Table11[[#This Row],[Meas]]-INDEX(INDIRECT("Table"&4+Table11[[#This Row],[Gender]]&"[Mean]"),MATCH(Table11[[#This Row],[Age]],INDIRECT("Table"&4+Table11[[#This Row],[Gender]]&"[Age]"),0)))/INDEX(INDIRECT("Table"&4+Table11[[#This Row],[Gender]]&"[SD]"),MATCH(Table11[[#This Row],[Age]],INDIRECT("Table"&4+Table11[[#This Row],[Gender]]&"[Age]"),0)) -> -1.143138119
B11: G8298 | C11: =INDEX(Table1[Gender],MATCH(Table11[[#This Row],[ID]],Table1[ID],0)) -> 1 | D11: =INDEX(Table1[Age],MATCH(Table11[[#This Row],[ID]],Table1[ID],0)) -> 8 | E11: =INDEX(Table1[BMD],MATCH(Table11[[#This Row],[ID]],Table1[ID],0)) -> 0.5321243475 | F11: =(Table11[[#This Row],[Meas]]-INDEX(INDIRECT("Table"&4+Table11[[#This Row],[Gender]]&"[Mean]"),MATCH(Table11[[#This Row],[Age]],INDIRECT("Table"&4+Table11[[#This Row],[Gender]]&"[Age]"),0)))/INDEX(INDIRECT("Table"&4+Table11[[#This Row],[Gender]]&"[SD]"),MATCH(Table11[[#This Row],[Age]],INDIRECT("Table"&4+Table11[[#This Row],[Gender]]&"[Age]"),0)) -> -1.424976703
B12: K4856 | C12: =INDEX(Table1[Gender],MATCH(Table11[[#This Row],[ID]],Table1[ID],0)) -> 1 | D12: =INDEX(Table1[Age],MATCH(Table11[[#This Row],[ID]],Table1[ID],0)) -> 18 | E12: =INDEX(Table1[BMD],MATCH(Table11[[#This Row],[ID]],Table1[ID],0)) -> 1.091172835 | F12: =(Table11[[#This Row],[Meas]]-INDEX(INDIRECT("Table"&4+Table11[[#This Row],[Gender]]&"[Mean]"),MATCH(Table11[[#This Row],[Age]],INDIRECT("Table"&4+Table11[[#This Row],[Gender]]&"[Age]"),0)))/INDEX(INDIRECT("Table"&4+Table11[[#This Row],[Gender]]&"[SD]"),MATCH(Table11[[#This Row],[Age]],INDIRECT("Table"&4+Table11[[#This Row],[Gender]]&"[Age]"),0)) -> 0.2158704179
B13: E7691 | C13: =INDEX(Table1[Gender],MATCH(Table11[[#This Row],[ID]],Table1[ID],0)) -> 1 | D13: =INDEX(Table1[Age],MATCH(Table11[[#This Row],[ID]],Table1[ID],0)) -> 16 | E13: =INDEX(Table1[BMD],MATCH(Table11[[#This Row],[ID]],Table1[ID],0)) -> 0.9239619969 | F13: =(Table11[[#This Row],[Meas]]-INDEX(INDIRECT("Table"&4+Table11[[#This Row],[Gender]]&"[Mean]"),MATCH(Table11[[#This Row],[Age]],INDIRECT("Table"&4+Table11[[#This Row],[Gender]]&"[Age]"),0)))/INDEX(INDIRECT("Table"&4+Table11[[#This Row],[Gender]]&"[SD]"),MATCH(Table11[[#This Row],[Age]],INDIRECT("Table"&4+Table11[[#This Row],[Gender]]&"[Age]"),0)) -> -0.4496820419
B14: B6130 | C14: =INDEX(Table1[Gender],MATCH(Table11[[#This Row],[ID]],Table1[ID],0)) -> 0 | D14: =INDEX(Table1[Age],MATCH(Table11[[#This Row],[ID]],Table1[ID],0)) -> 20 | E14: =INDEX(Table1[BMD],MATCH(Table11[[#This Row],[ID]],Table1[ID],0)) -> 0.9648466117 | F14: =(Table11[[#This Row],[Meas]]-INDEX(INDIRECT("Table"&4+Table11[[#This Row],[Gender]]&"[Mean]"),MATCH(Table11[[#This Row],[Age]],INDIRECT("Table"&4+Table11[[#This Row],[Gender]]&"[Age]"),0)))/INDEX(INDIRECT("Table"&4+Table11[[#This Row],[Gender]]&"[SD]"),MATCH(Table11[[#This Row],[Age]],INDIRECT("Table"&4+Table11[[#This Row],[Gender]]&"[Age]"),0)) -> -0.1165107788
B17: Table10 | C17: BMC
B18: ID | C18: Gender | D18: Age | E18: Meas | F18: ZSCORE
B19: R8771 | C19: =INDEX(Table1[Gender],MATCH(Table10[[#This Row],[ID]],Table1[ID],0)) -> 0 | D19: =INDEX(Table1[Age],MATCH(Table10[[#This Row],[ID]],Table1[ID],0)) -> 10 | E19: =INDEX(Table1[BMC],MATCH(Table10[[#This Row],[ID]],Table1[ID],0)) -> 659.4390279 | F19: =(Table10[[#This Row],[Meas]]-INDEX(INDIRECT("Table"&6+Table10[[#This Row],[Gender]]&"[Mean]"),MATCH(Table10[[#This Row],[Age]],INDIRECT("Table"&6+Table10[[#This Row],[Gender]]&"[Age]"),0)))/INDEX(INDIRECT("Table"&6+Table10[[#This Row],[Gender]]&"[SD]"),MATCH(Table10[[#This Row],[Age]],INDIRECT("Table"&6+Table10[[#This Row],[Gender]]&"[Age]"),0)) -> -1.233721031
B20: X3485 | C20: =INDEX(Table1[Gender],MATCH(Table10[[#This Row],[ID]],Table1[ID],0)) -> 0 | D20: =INDEX(Table1[Age],MATCH(Table10[[#This Row],[ID]],Table1[ID],0)) -> 12 | E20: =INDEX(Table1[BMC],MATCH(Table10[[#This Row],[ID]],Table1[ID],0)) -> 1031.471202 | F20: =(Table10[[#This Row],[Meas]]-INDEX(INDIRECT("Table"&6+Table10[[#This Row],[Gender]]&"[Mean]"),MATCH(Table10[[#This Row],[Age]],INDIRECT("Table"&6+Table10[[#This Row],[Gender]]&"[Age]"),0)))/INDEX(INDIRECT("Table"&6+Table10[[#This Row],[Gender]]&"[SD]"),MATCH(Table10[[#This Row],[Age]],INDIRECT("Table"&6+Table10[[#This Row],[Gender]]&"[Age]"),0)) -> -0.6844453723
B21: B6749 | C21: =INDEX(Table1[Gender],MATCH(Table10[[#This Row],[ID]],Table1[ID],0)) -> 0 | D21: =INDEX(Table1[Age],MATCH(Table10[[#This Row],[ID]],Table1[ID],0)) -> 8 | E21: =INDEX(Table1[BMC],MATCH(Table10[[#This Row],[ID]],Table1[ID],0)) -> 549.188075 | F21: =(Table10[[#This Row],[Meas]]-INDEX(INDIRECT("Table"&6+Table10[[#This Row],[Gender]]&"[Mean]"),MATCH(Table10[[#This Row],[Age]],INDIRECT("Table"&6+Table10[[#This Row],[Gender]]&"[Age]"),0)))/INDEX(INDIRECT("Table"&6+Table10[[#This Row],[Gender]]&"[SD]"),MATCH(Table10[[#This Row],[Age]],INDIRECT("Table"&6+Table10[[#This Row],[Gender]]&"[Age]"),0)) -> -0.7545979562
B22: H6014 | C22: =INDEX(Table1[Gender],MATCH(Table10[[#This Row],[ID]],Table1[ID],0)) -> 0 | D22: =INDEX(Table1[Age],MATCH(Table10[[#This Row],[ID]],Table1[ID],0)) -> 12 | E22: =INDEX(Table1[BMC],MATCH(Table10[[#This Row],[ID]],Table1[ID],0)) -> 1601.186769 | F22: =(Table10[[#This Row],[Meas]]-INDEX(INDIRECT("Table"&6+Table10[[#This Row],[Gender]]&"[Mean]"),MATCH(Table10[[#This Row],[Age]],INDIRECT("Table"&6+Table10[[#This Row],[Gender]]&"[Age]"),0)))/INDEX(INDIRECT("Table"&6+Table10[[#This Row],[Gender]]&"[SD]"),MATCH(Table10[[#This Row],[Age]],INDIRECT("Table"&6+Table10[[#This Row],[Gender]]&"[Age]"),0)) -> 1.499703395
B23: Q1226 | C23: =INDEX(Table1[Gender],MATCH(Table10[[#This Row],[ID]],Table1[ID],0)) -> 0 | D23: =INDEX(Table1[Age],MATCH(Table10[[#This Row],[ID]],Table1[ID],0)) -> 9 | E23: =INDEX(Table1[BMC],MATCH(Table10[[#This Row],[ID]],Table1[ID],0)) -> 797.3784443 | F23: =(Table10[[#This Row],[Meas]]-INDEX(INDIRECT("Table"&6+Table10[[#This Row],[Gender]]&"[Mean]"),MATCH(Table10[[#This Row],[Age]],INDIRECT("Table"&6+Table10[[#This Row],[Gender]]&"[Age]"),0)))/INDEX(INDIRECT("Table"&6+Table10[[#This Row],[Gender]]&"[SD]"),MATCH(Table10[[#This Row],[Age]],INDIRECT("Table"&6+Table10[[#This Row],[Gender]]&"[Age]"),0)) -> 1.001119245
B24: G4434 | C24: =INDEX(Table1[Gender],MATCH(Table10[[#This Row],[ID]],Table1[ID],0)) -> 0 | D24: =INDEX(Table1[Age],MATCH(Table10[[#This Row],[ID]],Table1[ID],0)) -> 15 | E24: =INDEX(Table1[BMC],MATCH(Table10[[#This Row],[ID]],Table1[ID],0)) -> 1944.231278 | F24: =(Table10[[#This Row],[Meas]]-INDEX(INDIRECT("Table"&6+Table10[[#This Row],[Gender]]&"[Mean]"),MATCH(Table10[[#This Row],[Age]],INDIRECT("Table"&6+Table10[[#This Row],[Gender]]&"[Age]"),0)))/INDEX(INDIRECT("Table"&6+Table10[[#This Row],[Gender]]&"[SD]"),MATCH(Table10[[#This Row],[Age]],INDIRECT("Table"&6+Table10[[#This Row],[Gender]]&"[Age]"),0)) -> 1.197649396
B25: G7384 | C25: =INDEX(Table1[Gender],MATCH(Table10[[#This Row],[ID]],Table1[ID],0)) -> 0 | D25: =INDEX(Table1[Age],MATCH(Table10[[#This Row],[ID]],Table1[ID],0)) -> 16 | E25: =INDEX(Table1[BMC],MATCH(Table10[[#This Row],[ID]],Table1[ID],0)) -> 1356.406105 | F25: =(Table10[[#This Row],[Meas]]-INDEX(INDIRECT("Table"&6+Table10[[#This Row],[Gender]]&"[Mean]"),MATCH(Table10[[#This Row],[Age]],INDIRECT("Table"&6+Table10[[#This Row],[Gender]]&"[Age]"),0)))/INDEX(INDIRECT("Table"&6+Table10[[#This Row],[Gender]]&"[SD]"),MATCH(Table10[[#This Row],[Age]],INDIRECT("Table"&6+Table10[[#This Row],[Gender]]&"[Age]"),0)) -> -1.151780094
B26: G8298 | C26: =INDEX(Table1[Gender],MATCH(Table10[[#This Row],[ID]],Table1[ID],0)) -> 1 | D26: =INDEX(Table1[Age],MATCH(Table10[[#This Row],[ID]],Table1[ID],0)) -> 8 | E26: =INDEX(Table1[BMC],MATCH(Table10[[#This Row],[ID]],Table1[ID],0)) -> 599.6769192 | F26: =(Table10[[#This Row],[Meas]]-INDEX(INDIRECT("Table"&6+Table10[[#This Row],[Gender]]&"[Mean]"),MATCH(Table10[[#This Row],[Age]],INDIRECT("Table"&6+Table10[[#This Row],[Gender]]&"[Age]"),0)))/INDEX(INDIRECT("Table"&6+Table10[[#This Row],[Gender]]&"[SD]"),MATCH(Table10[[#This Row],[Age]],INDIRECT("Table"&6+Table10[[#This Row],[Gender]]&"[Age]"),0)) -> -0.3698442953
B27: K4856 | C27: =INDEX(Table1[Gender],MATCH(Table10[[#This Row],[ID]],Table1[ID],0)) -> 1 | D27: =INDEX(Table1[Age],MATCH(Table10[[#This Row],[ID]],Table1[ID],0)) -> 18 | E27: =INDEX(Table1[BMC],MATCH(Table10[[#This Row],[ID]],Table1[ID],0)) -> 1995.765614 | F27: =(Table10[[#This Row],[Meas]]-INDEX(INDIRECT("Table"&6+Table10[[#This Row],[Gender]]&"[Mean]"),MATCH(Table10[[#This Row],[Age]],INDIRECT("Table"&6+Table10[[#This Row],[Gender]]&"[Age]"),0)))/INDEX(INDIRECT("Table"&6+Table10[[#This Row],[Gender]]&"[SD]"),MATCH(Table10[[#This Row],[Age]],INDIRECT("Table"&6+Table10[[#This Row],[Gender]]&"[Age]"),0)) -> -0.1630207897
B28: E7691 | C28: =INDEX(Table1[Gender],MATCH(Table10[[#This Row],[ID]],Table1[ID],0)) -> 1 | D28: =INDEX(Table1[Age],MATCH(Table10[[#This Row],[ID]],Table1[ID],0)) -> 16 | E28: =INDEX(Table1[BMC],MATCH(Table10[[#This Row],[ID]],Table1[ID],0)) -> 2006.696231 | F28: =(Table10[[#This Row],[Meas]]-INDEX(INDIRECT("Table"&6+Table10[[#This Row],[Gender]]&"[Mean]"),MATCH(Table10[[#This Row],[Age]],INDIRECT("Table"&6+Table10[[#This Row],[Gender]]&"[Age]"),0)))/INDEX(INDIRECT("Table"&6+Table10[[#This Row],[Gender]]&"[SD]"),MATCH(Table10[[#This Row],[Age]],INDIRECT("Table"&6+Table10[[#This Row],[Gender]]&"[Age]"),0)) -> 0.237079331
B29: B6130 | C29: =INDEX(Table1[Gender],MATCH(Table10[[#This Row],[ID]],Table1[ID],0)) -> 0 | D29: =INDEX(Table1[Age],MATCH(Table10[[#This Row],[ID]],Table1[ID],0)) -> 20 | E29: =INDEX(Table1[BMC],MATCH(Table10[[#This Row],[ID]],Table1[ID],0)) -> 1861.224076 | F29: =(Table10[[#This Row],[Meas]]-INDEX(INDIRECT("Table"&6+Table10[[#This Row],[Gender]]&"[Mean]"),MATCH(Table10[[#This Row],[Age]],INDIRECT("Table"&6+Table10[[#This Row],[Gender]]&"[Age]"),0)))/INDEX(INDIRECT("Table"&6+Table10[[#This Row],[Gender]]&"[SD]"),MATCH(Table10[[#This Row],[Age]],INDIRECT("Table"&6+Table10[[#This Row],[Gender]]&"[Age]"),0)) -> 1.230005863
B32: Table13 | C32: Neck
B33: ID | C33: Gender | D33: Age | E33: Meas | F33: ZSCORE
B34: R8771 | C34: =INDEX(Table1[Gender],MATCH(Table13[[#This Row],[ID]],Table1[ID],0)) -> 0 | D34: =INDEX(Table1[Age],MATCH(Table13[[#This Row],[ID]],Table1[ID],0)) -> 10 | E34: =INDEX(Table1[Neck],MATCH(Table13[[#This Row],[ID]],Table1[ID],0)) -> 1.191706384 | F34: =(Table13[[#This Row],[Meas]]-INDEX(INDIRECT("Table"&8+Table13[[#This Row],[Gender]]&"[Mean]"),MATCH(Table13[[#This Row],[Age]],INDIRECT("Table"&8+Table13[[#This Row],[Gender]]&"[Age]"),0)))/INDEX(INDIRECT("Table"&8+Table13[[#This Row],[Gender]]&"[SD]"),MATCH(Table13[[#This Row],[Age]],INDIRECT("Table"&8+Table13[[#This Row],[Gender]]&"[Age]"),0)) -> -0.8281762545
B35: X3485 | C35: =INDEX(Table1[Gender],MATCH(Table13[[#This Row],[ID]],Table1[ID],0)) -> 0 | D35: =INDEX(Table1[Age],MATCH(Table13[[#This Row],[ID]],Table1[ID],0)) -> 12 | E35: =INDEX(Table1[Neck],MATCH(Table13[[#This Row],[ID]],Table1[ID],0)) -> 1.028294768 | F35: =(Table13[[#This Row],[Meas]]-INDEX(INDIRECT("Table"&8+Table13[[#This Row],[Gender]]&"[Mean]"),MATCH(Table13[[#This Row],[Age]],INDIRECT("Table"&8+Table13[[#This Row],[Gender]]&"[Age]"),0)))/INDEX(INDIRECT("Table"&8+Table13[[#This Row],[Gender]]&"[SD]"),MATCH(Table13[[#This Row],[Age]],INDIRECT("Table"&8+Table13[[#This Row],[Gender]]&"[Age]"),0)) -> 0.03601658429
B36: B6749 | C36: =INDEX(Table1[Gender],MATCH(Table13[[#This Row],[ID]],Table1[ID],0)) -> 0 | D36: =INDEX(Table1[Age],MATCH(Table13[[#This Row],[ID]],Table1[ID],0)) -> 8 | E36: =INDEX(Table1[Neck],MATCH(Table13[[#This Row],[ID]],Table1[ID],0)) -> 1.36226644 | F36: =(Table13[[#This Row],[Meas]]-INDEX(INDIRECT("Table"&8+Table13[[#This Row],[Gender]]&"[Mean]"),MATCH(Table13[[#This Row],[Age]],INDIRECT("Table"&8+Table13[[#This Row],[Gender]]&"[Age]"),0)))/INDEX(INDIRECT("Table"&8+Table13[[#This Row],[Gender]]&"[SD]"),MATCH(Table13[[#This Row],[Age]],INDIRECT("Table"&8+Table13[[#This Row],[Gender]]&"[Age]"),0)) -> -0.9048975334
B37: H6014 | C37: =INDEX(Table1[Gender],MATCH(Table13[[#This Row],[ID]],Table1[ID],0)) -> 0 | D37: =INDEX(Table1[Age],MATCH(Table13[[#This Row],[ID]],Table1[ID],0)) -> 12 | E37: =INDEX(Table1[Neck],MATCH(Table13[[#This Row],[ID]],Table1[ID],0)) -> 1.017461777 | F37: =(Table13[[#This Row],[Meas]]-INDEX(INDIRECT("Table"&8+Table13[[#This Row],[Gender]]&"[Mean]"),MATCH(Table13[[#This Row],[Age]],INDIRECT("Table"&8+Table13[[#This Row],[Gender]]&"[Age]"),0)))/INDEX(INDIRECT("Table"&8+Table13[[#This Row],[Gender]]&"[SD]"),MATCH(Table13[[#This Row],[Age]],INDIRECT("Table"&8+Table13[[#This Row],[Gender]]&"[Age]"),0)) -> -0.06959432361
B38: Q1226 | C38: =INDEX(Table1[Gender],MATCH(Table13[[#This Row],[ID]],Table1[ID],0)) -> 0 | D38: =INDEX(Table1[Age],MATCH(Table13[[#This Row],[ID]],Table1[ID],0)) -> 9 | E38: =INDEX(Table1[Neck],MATCH(Table13[[#This Row],[ID]],Table1[ID],0)) -> 1.373989081 | F38: =(Table13[[#This Row],[Meas]]-INDEX(INDIRECT("Table"&8+Table13[[#This Row],[Gender]]&"[Mean]"),MATCH(Table13[[#This Row],[Age]],INDIRECT("Table"&8+Table13[[#This Row],[Gender]]&"[Age]"),0)))/INDEX(INDIRECT("Table"&8+Table13[[#This Row],[Gender]]&"[SD]"),MATCH(Table13[[#This Row],[Age]],INDIRECT("Table"&8+Table13[[#This Row],[Gender]]&"[Age]"),0)) -> 1.452625683
B39: G4434 | C39: =INDEX(Table1[Gender],MATCH(Table13[[#This Row],[ID]],Table1[ID],0)) -> 0 | D39: =INDEX(Table1[Age],MATCH(Table13[[#This Row],[ID]],Table1[ID],0)) -> 15 | E39: =INDEX(Table1[Neck],MATCH(Table13[[#This Row],[ID]],Table1[ID],0)) -> 0.8006327651 | F39: =(Table13[[#This Row],[Meas]]-INDEX(INDIRECT("Table"&8+Table13[[#This Row],[Gender]]&"[Mean]"),MATCH(Table13[[#This Row],[Age]],INDIRECT("Table"&8+Table13[[#This Row],[Gender]]&"[Age]"),0)))/INDEX(INDIRECT("Table"&8+Table13[[#This Row],[Gender]]&"[SD]"),MATCH(Table13[[#This Row],[Age]],INDIRECT("Table"&8+Table13[[#This Row],[Gender]]&"[Age]"),0)) -> 0.3204658309
B40: G7384 | C40: =INDEX(Table1[Gender],MATCH(Table13[[#This Row],[ID]],Table1[ID],0)) -> 0 | D40: =INDEX(Table1[Age],MATCH(Table13[[#This Row],[ID]],Table1[ID],0)) -> 16 | E40: =INDEX(Table1[Neck],MATCH(Table13[[#This Row],[ID]],Table1[ID],0)) -> 0.657999623 | F40: =(Table13[[#This Row],[Meas]]-INDEX(INDIRECT("Table"&8+Table13[[#This Row],[Gender]]&"[Mean]"),MATCH(Table13[[#This Row],[Age]],INDIRECT("Table"&8+Table13[[#This Row],[Gender]]&"[Age]"),0)))/INDEX(INDIRECT("Table"&8+Table13[[#This Row],[Gender]]&"[SD]"),MATCH(Table13[[#This Row],[Age]],INDIRECT("Table"&8+Table13[[#This Row],[Gender]]&"[Age]"),0)) -> -0.2335756898
B41: G8298 | C41: =INDEX(Table1[Gender],MATCH(Table13[[#This Row],[ID]],Table1[ID],0)) -> 1 | D41: =INDEX(Table1[Age],MATCH(Table13[[#This Row],[ID]],Table1[ID],0)) -> 8 | E41: =INDEX(Table1[Neck],MATCH(Table13[[#This Row],[ID]],Table1[ID],0)) -> 0.9720781129 | F41: =(Table13[[#This Row],[Meas]]-INDEX(INDIRECT("Table"&8+Table13[[#This Row],[Gender]]&"[Mean]"),MATCH(Table13[[#This Row],[Age]],INDIRECT("Table"&8+Table13[[#This Row],[Gender]]&"[Age]"),0)))/INDEX(INDIRECT("Table"&8+Table13[[#This Row],[Gender]]&"[SD]"),MATCH(Table13[[#This Row],[Age]],INDIRECT("Table"&8+Table13[[#This Row],[Gender]]&"[Age]"),0)) -> 0.373391958
B42: K4856 | C42: =INDEX(Table1[Gender],MATCH(Table13[[#This Row],[ID]],Table1[ID],0)) -> 1 | D42: =INDEX(Table1[Age],MATCH(Table13[[#This Row],[ID]],Table1[ID],0)) -> 18 | E42: =INDEX(Table1[Neck],MATCH(Table13[[#This Row],[ID]],Table1[ID],0)) -> 1.21913488 | F42: =(Table13[[#This Row],[Meas]]-INDEX(INDIRECT("Table"&8+Table13[[#This Row],[Gender]]&"[Mean]"),MATCH(Table13[[#This Row],[Age]],INDIRECT("Table"&8+Table13[[#This Row],[Gender]]&"[Age]"),0)))/INDEX(INDIRECT("Table"&8+Table13[[#This Row],[Gender]]&"[SD]"),MATCH(Table13[[#This Row],[Age]],INDIRECT("Table"&8+Table13[[#This Row],[Gender]]&"[Age]"),0)) -> 1.015874879
B43: E7691 | C43: =INDEX(Table1[Gender],MATCH(Table13[[#This Row],[ID]],Table1[ID],0)) -> 1 | D43: =INDEX(Table1[Age],MATCH(Table13[[#This Row],[ID]],Table1[ID],0)) -> 16 | E43: =INDEX(Table1[Neck],MATCH(Table13[[#This Row],[ID]],Table1[ID],0)) -> 1.05482226 | F43: =(Table13[[#This Row],[Meas]]-INDEX(INDIRECT("Table"&8+Table13[[#This Row],[Gender]]&"[Mean]"),MATCH(Table13[[#This Row],[Age]],INDIRECT("Table"&8+Table13[[#This Row],[Gender]]&"[Age]"),0)))/INDEX(INDIRECT("Table"&8+Table13[[#This Row],[Gender]]&"[SD]"),MATCH(Table13[[#This Row],[Age]],INDIRECT("Table"&8+Table13[[#This Row],[Gender]]&"[Age]"),0)) -> 0.1887700065
B44: B6130 | C44: =INDEX(Table1[Gender],MATCH(Table13[[#This Row],[ID]],Table1[ID],0)) -> 0 | D44: =INDEX(Table1[Age],MATCH(Table13[[#This Row],[ID]],Table1[ID],0)) -> 20 | E44: =INDEX(Table1[Neck],MATCH(Table13[[#This Row],[ID]],Table1[ID],0)) -> 0.1779678028 | F44: =(Table13[[#This Row],[Meas]]-INDEX(INDIRECT("Table"&8+Table13[[#This Row],[Gender]]&"[Mean]"),MATCH(Table13[[#This Row],[Age]],INDIRECT("Table"&8+Table13[[#This Row],[Gender]]&"[Age]"),0)))/INDEX(INDIRECT("Table"&8+Table13[[#This Row],[Gender]]&"[SD]"),MATCH(Table13[[#This Row],[Age]],INDIRECT("Table"&8+Table13[[#This Row],[Gender]]&"[Age]"),0)) -> -0.876290278
B47: Table12 | C47: Spine
B48: ID | C48: Gender | D48: Age | E48: Meas | F48: ZSCORE
B49: R8771 | C49: =INDEX(Table1[Gender],MATCH(Table12[[#This Row],[ID]],Table1[ID],0)) -> 0 | D49: =INDEX(Table1[Age],MATCH(Table12[[#This Row],[ID]],Table1[ID],0)) -> 10 | E49: =INDEX(Table1[Spine],MATCH(Table12[[#This Row],[ID]],Table1[ID],0)) -> 0.4102165581 | F49: =(Table12[[#This Row],[Meas]]-INDEX(INDIRECT("Table"&2+Table12[[#This Row],[Gender]]&"[Mean]"),MATCH(Table12[[#This Row],[Age]],INDIRECT("Table"&2+Table12[[#This Row],[Gender]]&"[Age]"),0)))/INDEX(INDIRECT("Table"&2+Table12[[#This Row],[Gender]]&"[SD]"),MATCH(Table12[[#This Row],[Age]],INDIRECT("Table"&2+Table12[[#This Row],[Gender]]&"[Age]"),0)) -> -0.3556186299
B50: X3485 | C50: =INDEX(Table1[Gender],MATCH(Table12[[#This Row],[ID]],Table1[ID],0)) -> 0 | D50: =INDEX(Table1[Age],MATCH(Table12[[#This Row],[ID]],Table1[ID],0)) -> 12 | E50: =INDEX(Table1[Spine],MATCH(Table12[[#This Row],[ID]],Table1[ID],0)) -> 0.4428051735 | F50: =(Table12[[#This Row],[Meas]]-INDEX(INDIRECT("Table"&2+Table12[[#This Row],[Gender]]&"[Mean]"),MATCH(Table12[[#This Row],[Age]],INDIRECT("Table"&2+Table12[[#This Row],[Gender]]&"[Age]"),0)))/INDEX(INDIRECT("Table"&2+Table12[[#This Row],[Gender]]&"[SD]"),MATCH(Table12[[#This Row],[Age]],INDIRECT("Table"&2+Table12[[#This Row],[Gender]]&"[Age]"),0)) -> 0.4432574406
B51: B6749 | C51: =INDEX(Table1[Gender],MATCH(Table12[[#This Row],[ID]],Table1[ID],0)) -> 0 | D51: =INDEX(Table1[Age],MATCH(Table12[[#This Row],[ID]],Table1[ID],0)) -> 8 | E51: =INDEX(Table1[Spine],MATCH(Table12[[#This Row],[ID]],Table1[ID],0)) -> 0.3934586159 | F51: =(Table12[[#This Row],[Meas]]-INDEX(INDIRECT("Table"&2+Table12[[#This Row],[Gender]]&"[Mean]"),MATCH(Table12[[#This Row],[Age]],INDIRECT("Table"&2+Table12[[#This Row],[Gender]]&"[Age]"),0)))/INDEX(INDIRECT("Table"&2+Table12[[#This Row],[Gender]]&"[SD]"),MATCH(Table12[[#This Row],[Age]],INDIRECT("Table"&2+Table12[[#This Row],[Gender]]&"[Age]"),0)) -> -0.8317383382
B52: H6014 | C52: =INDEX(Table1[Gender],MATCH(Table12[[#This Row],[ID]],Table1[ID],0)) -> 0 | D52: =INDEX(Table1[Age],MATCH(Table12[[#This Row],[ID]],Table1[ID],0)) -> 12 | E52: =INDEX(Table1[Spine],MATCH(Table12[[#This Row],[ID]],Table1[ID],0)) -> 0.3951602022 | F52: =(Table12[[#This Row],[Meas]]-INDEX(INDIRECT("Table"&2+Table12[[#This Row],[Gender]]&"[Mean]"),MATCH(Table12[[#This Row],[Age]],INDIRECT("Table"&2+Table12[[#This Row],[Gender]]&"[Age]"),0)))/INDEX(INDIRECT("Table"&2+Table12[[#This Row],[Gender]]&"[SD]"),MATCH(Table12[[#This Row],[Age]],INDIRECT("Table"&2+Table12[[#This Row],[Gender]]&"[Age]"),0)) -> -0.4767841574
B53: Q1226 | C53: =INDEX(Table1[Gender],MATCH(Table12[[#This Row],[ID]],Table1[ID],0)) -> 0 | D53: =INDEX(Table1[Age],MATCH(Table12[[#This Row],[ID]],Table1[ID],0)) -> 9 | E53: =INDEX(Table1[Spine],MATCH(Table12[[#This Row],[ID]],Table1[ID],0)) -> 0.4969580469 | F53: =(Table12[[#This Row],[Meas]]-INDEX(INDIRECT("Table"&2+Table12[[#This Row],[Gender]]&"[Mean]"),MATCH(Table12[[#This Row],[Age]],INDIRECT("Table"&2+Table12[[#This Row],[Gender]]&"[Age]"),0)))/INDEX(INDIRECT("Table"&2+Table12[[#This Row],[Gender]]&"[SD]"),MATCH(Table12[[#This Row],[Age]],INDIRECT("Table"&2+Table12[[#This Row],[Gender]]&"[Age]"),0)) -> 1.182383522
B54: G4434 | C54: =INDEX(Table1[Gender],MATCH(Table12[[#This Row],[ID]],Table1[ID],0)) -> 0 | D54: =INDEX(Table1[Age],MATCH(Table12[[#This Row],[ID]],Table1[ID],0)) -> 15 | E54: =INDEX(Table1[Spine],MATCH(Table12[[#This Row],[ID]],Table1[ID],0)) -> 0.473025578 | F54: =(Table12[[#This Row],[Meas]]-INDEX(INDIRECT("Table"&2+Table12[[#This Row],[Gender]]&"[Mean]"),MATCH(Table12[[#This Row],[Age]],INDIRECT("Table"&2+Table12[[#This Row],[Gender]]&"[Age]"),0)))/INDEX(INDIRECT("Table"&2+Table12[[#This Row],[Gender]]&"[SD]"),MATCH(Table12[[#This Row],[Age]],INDIRECT("Table"&2+Table12[[#This Row],[Gender]]&"[Age]"),0)) -> 1.47196617
B55: G7384 | C55: =INDEX(Table1[Gender],MATCH(Table12[[#This Row],[ID]],Table1[ID],0)) -> 0 | D55: =INDEX(Table1[Age],MATCH(Table12[[#This Row],[ID]],Table1[ID],0)) -> 16 | E55: =INDEX(Table1[Spine],MATCH(Table12[[#This Row],[ID]],Table1[ID],0)) -> 0.4190475486 | F55: =(Table12[[#This Row],[Meas]]-INDEX(INDIRECT("Table"&2+Table12[[#This Row],[Gender]]&"[Mean]"),MATCH(Table12[[#This Row],[Age]],INDIRECT("Table"&2+Table12[[#This Row],[Gender]]&"[Age]"),0)))/INDEX(INDIRECT("Table"&2+Table12[[#This Row],[Gender]]&"[SD]"),MATCH(Table12[[#This Row],[Age]],INDIRECT("Table"&2+Table12[[#This Row],[Gender]]&"[Age]"),0)) -> 1.336622358
B56: G8298 | C56: =INDEX(Table1[Gender],MATCH(Table12[[#This Row],[ID]],Table1[ID],0)) -> 1 | D56: =INDEX(Table1[Age],MATCH(Table12[[#This Row],[ID]],Table1[ID],0)) -> 8 | E56: =INDEX(Table1[Spine],MATCH(Table12[[#This Row],[ID]],Table1[ID],0)) -> 0.3562532964 | F56: =(Table12[[#This Row],[Meas]]-INDEX(INDIRECT("Table"&2+Table12[[#This Row],[Gender]]&"[Mean]"),MATCH(Table12[[#This Row],[Age]],INDIRECT("Table"&2+Table12[[#This Row],[Gender]]&"[Age]"),0)))/INDEX(INDIRECT("Table"&2+Table12[[#This Row],[Gender]]&"[SD]"),MATCH(Table12[[#This Row],[Age]],INDIRECT("Table"&2+Table12[[#This Row],[Gender]]&"[Age]"),0)) -> -0.7388329761
B57: K4856 | C57: =INDEX(Table1[Gender],MATCH(Table12[[#This Row],[ID]],Table1[ID],0)) -> 1 | D57: =INDEX(Table1[Age],MATCH(Table12[[#This Row],[ID]],Table1[ID],0)) -> 18 | E57: =INDEX(Table1[Spine],MATCH(Table12[[#This Row],[ID]],Table1[ID],0)) -> 0.3532588432 | F57: =(Table12[[#This Row],[Meas]]-INDEX(INDIRECT("Table"&2+Table12[[#This Row],[Gender]]&"[Mean]"),MATCH(Table12[[#This Row],[Age]],INDIRECT("Table"&2+Table12[[#This Row],[Gender]]&"[Age]"),0)))/INDEX(INDIRECT("Table"&2+Table12[[#This Row],[Gender]]&"[SD]"),MATCH(Table12[[#This Row],[Age]],INDIRECT("Table"&2+Table12[[#This Row],[Gender]]&"[Age]"),0)) -> -0.4575237904
B58: E7691 | C58: =INDEX(Table1[Gender],MATCH(Table12[[#This Row],[ID]],Table1[ID],0)) -> 1 | D58: =INDEX(Table1[Age],MATCH(Table12[[#This Row],[ID]],Table1[ID],0)) -> 16 | E58: =INDEX(Table1[Spine],MATCH(Table12[[#This Row],[ID]],Table1[ID],0)) -> 0.4113123332 | F58: =(Table12[[#This Row],[Meas]]-INDEX(INDIRECT("Table"&2+Table12[[#This Row],[Gender]]&"[Mean]"),MATCH(Table12[[#This Row],[Age]],INDIRECT("Table"&2+Table12[[#This Row],[Gender]]&"[Age]"),0)))/INDEX(INDIRECT("Table"&2+Table12[[#This Row],[Gender]]&"[SD]"),MATCH(Table12[[#This Row],[Age]],INDIRECT("Table"&2+Table12[[#This Row],[Gender]]&"[Age]"),0)) -> 0.7100063675
B59: B6130 | C59: =INDEX(Table1[Gender],MATCH(Table12[[#This Row],[ID]],Table1[ID],0)) -> 0 | D59: =INDEX(Table1[Age],MATCH(Table12[[#This Row],[ID]],Table1[ID],0)) -> 20 | E59: =INDEX(Table1[Spine],MATCH(Table12[[#This Row],[ID]],Table1[ID],0)) -> 0.3625045031 | F59: =(Table12[[#This Row],[Meas]]-INDEX(INDIRECT("Table"&2+Table12[[#This Row],[Gender]]&"[Mean]"),MATCH(Table12[[#This Row],[Age]],INDIRECT("Table"&2+Table12[[#This Row],[Gender]]&"[Age]"),0)))/INDEX(INDIRECT("Table"&2+Table12[[#This Row],[Gender]]&"[SD]"),MATCH(Table12[[#This Row],[Age]],INDIRECT("Table"&2+Table12[[#This Row],[Gender]]&"[Age]"),0)) -> 0.1451305106
